{"text_format":"1","workbook":"xlsx","n_sheets":8,"sheets":["Benvenuto","Lotto8_C6400_1","Lotto8_C6400_2","Lotto8_C6400_3","Altre_Opzioni","Riepilogo_Ordine","ConfigurationTS4L8","Tabella_prezzi"],"not_rendered":{"charts":0,"images":9,"macros":1,"external_links":1,"defined_names":29,"comments":0,"pivot_tables":0},"unopened":[],"bounds":{"document_bytes":16777216,"sheet_cells":100000,"rows_first":2000,"rows_last":500,"rows_between":2000,"halvings":0,"cell_chars":16384,"cell_head_chars":4096},"cells_cut":0,"cells_raw":0,"read":"whole","date_system":"1900"}

{"sheet":"Benvenuto","index":0,"n_rows":8,"n_cols":17,"rows_kept":8,"cut":false,"hidden":false,"merged":[[2,4,42,13],[2,15,2,16],[4,15,4,16],[6,15,6,16]]}
[]
[]
[null,null,null,null,null,null,null,null,null,null,null,null,null,null,null,"LEGENDA"]
[null,null,null,null,null,null,null,null,null,null,null,null,null,null,null,"Campi Non Editabili","Campi Editabili"]
[]
[null,null,null,null,null,null,null,null,null,null,null,null,null,null,null,"Opzioni 20%","Qtà 20%"]
[]
[null,null,null,null,null,null,null,null,null,null,null,null,null,null,null,"Errore nella Selezione","Verifica Positiva"]

{"sheet":"Lotto8_C6400_1","index":1,"n_rows":81,"n_cols":21,"rows_kept":81,"cut":false,"hidden":false,"merged":[[1,9,2,9],[5,11,6,11],[59,14,60,15],[70,10,71,10],[38,14,39,14],[58,11,58,12],[11,10,12,10],[31,10,32,10],[33,14,37,14],[73,10,74,10],[80,9,80,12],[81,9,92,12],[34,9,35,9],[36,9,37,9],[59,10,60,10]]}
[]
[null,null,null,null,null,null,null,null,null,"Convenzione \nTecnologie Server 4 - Lotto 8",null,null,null,null,{"$f":"IF(O4>O6,\"Superata Quota 20%\",\"\")","v":""}]
[null,null,null,null,null,null,null,null,null,null,null,null,null,null,"Articoli 20% Totali"]
[null,null,null,null,null,null,null,null,null,null,null,null,"Totale Altre Opzioni",null,{"$f":"Riepilogo_Ordine!K51","v":0}]
[null,null,null,null,null,null,null,null,null,null,null,null,{"$f":"Altre_Opzioni!H3","v":0},null,"Quota Residua 20 %"]
[null,null,null,null,null,null,null,null,null,null,null,"Guida alla Convenzione","Totale Configurazione",null,{"$f":"Riepilogo_Ordine!G52","v":0}]
[null,null,null,null,null,null,null,null,null,null,null,null,{"$f":"M77+M78","v":0},null,"Totale Ordine\nIva Esclusa"]
[null,null,null,null,null,null,null,null,null,"DELL POWEREDGE C6400\n4 x C6525",null,"Quantità Server",0,null,{"$f":"Riepilogo_Ordine!K52","v":0}]
[]
[]
[]
[null,null,null,null,null,null,null,null,null,"Base"]
[null,null,null,null,null,null,null,null,null,"POWEREDGE C6400-R Enclosure ",null,{"$f":"IF($M$8>0,VLOOKUP(J13,ConfigurationTS4L8!1:3,13),\"\")","v":""},{"$f":"IF($M$8>0,1,\"\")","v":""},null,{"$f":"IF(M8>0,S13,\"\")","v":""},null,null,null,{"$f":"VLOOKUP($J13,TS4L8_SRV,10,FALSE)","v":10030.790000000001},null,{"$f":"VLOOKUP($J13,TS4L8_SRV,12,FALSE)","v":"L8N01"}]
[null,null,null,null,null,null,null,null,null,"PowerEdge C6525",null,null,{"$f":"IF($M$13>0,4,\"\")","v":4}]
[]
[null,null,null,null,null,null,null,null,null,"Chassis Configuration"]
[null,null,null,null,null,null,null,null,null,"Chassis with up to 24x2.5\" Drives"]
[]
[null,null,null,null,null,null,null,null,null,"Processor"]
[null,null,null,null,null,null,null,null,null,"AMD7413 2.65GHz,24C/48T,128M,180W,3200",null,{"$f":"VLOOKUP($J$20,TS4L8_CPU,13,FALSE)","v":"TS4L8-CPU"},{"$f":"VLOOKUP($J$20,TS4L8_CPU,7,FALSE)","v":4},null,null,null,null,null,{"$f":"VLOOKUP($J$20,TS4L8_CPU,11,FALSE)","v":0},{"$f":"VLOOKUP($J$20,TS4L8_CPU,11,FALSE)","v":0},{"$f":"VLOOKUP($J$20,TS4L8_CPU,11,FALSE)","v":0}]
[]
[null,null,null,null,null,null,null,null,null,"Additional Processor"]
[null,null,null,null,null,null,null,null,null,"No Additional Processor",null,{"$f":"VLOOKUP($J$23,ConfigurationTS4L8!1:1048576,13,FALSE)","v":""},{"$f":"VLOOKUP($J$23,TS4L8_CPU,7,FALSE)","v":0},null,{"$f":"S23","v":0},null,null,null,{"$f":"VLOOKUP($J$23,TS4L8_CPU,10,FALSE)","v":0},{"$f":"VLOOKUP($J$20,TS4L8_CPU,11,FALSE)","v":0},{"$f":"IF(J23=\"No Additional Processor\",\"\",VLOOKUP($J$20,TS4L8_CPU,12,FALSE))","v":""}]
[null,null,null,null,null,null,null,null,null,null,null,null,null,null,null,null,null,null,null,null,{"$f":"IF(L24=\"TS3L4-CPU\",\"L4N02\",0)","v":0}]
[null,null,null,null,null,null,null,null,null,"Memory Capacity (GB)",null,null,{"$f":"IF(AND(M26<6,M23>0),\"Selezionare Ram Corretta\",IF(AND(M23=0,M26>4),\"Selezionare Ram Corretta\",\"\"))","v":""}]
[null,null,null,null,null,null,null,null,null,"128GB Totali per Nodo",null,{"$f":"IF($M$23>0,VLOOKUP($J$26,TS4L8_RAM,13,),VLOOKUP($J$26,TS4L8_RAM,13,))","v":"TS4L8-RAM32"},{"$f":"IF($M$23>0,VLOOKUP($J$26,TS4L8_RAM,7,FALSE),VLOOKUP($J$26,TS4L8_RAM,7,FALSE))","v":0},null,{"$f":"S26","v":0},null,null,null,{"$f":"IF($M$23>0,VLOOKUP($J$26,TS4L8_RAM,10,FALSE),VLOOKUP($J$26,TS4L8_RAM,10,FALSE))","v":0},null,{"$f":"IF($M$23>0,VLOOKUP($J$26,TS4L8_RAM,12,FALSE),VLOOKUP($J$26,TS4L8_RAM,12,FALSE))","v":"L8N03"}]
[]
[null,null,null,null,null,null,null,null,null,"Operating System STANDARD"]
[null,null,null,null,null,null,null,null,null,"No Operating System",null,{"$f":"VLOOKUP($J$29,TS4L8_OS,13,FALSE)","v":""},{"$f":"IF(J29=\"Ubuntu 22.04 LTS 64 Bit\",4,\"\")","v":""},null,{"$f":"S29","v":0},null,null,null,{"$f":"VLOOKUP($J$29,TS4L8_OS,10,FALSE)*4","v":0},{"$f":"VLOOKUP($J$29,TS4L8_OS,11,FALSE)","v":0},{"$f":"VLOOKUP($J$29,TS4L8_OS,12,FALSE)","v":""}]
[]
[]
[null,null,null,null,null,null,null,null,null,"Disk Controller"]
[null,null,null,null,null,null,null,null,null,"No Controller",null,{"$f":"VLOOKUP($J$33,TS4L8_DiskController,13,FALSE)","v":""},{"$f":"VLOOKUP($J$33,TS4L8_DiskController,7,FALSE)","v":0}]
[null,null,null,null,null,null,null,null,null,null,null,null,null,null,{"$f":"IF(AND(M33>0,M66>0),\"Deselezionare Slot PCI\",\"\")","v":""}]
[null,null,null,null,null,null,null,null,null,"Hard Drive  Enclosure",null,"Usati","Disponibili"]
[null,null,null,null,null,null,null,null,null,null,null,{"$f":"SUM(M40:M58)*4","v":8},{"$f":"24-L36","v":16}]
[null,null,null,null,null,null,null,null,null,"Hard Drivers Bays n° 6 per ogni nodo - 2 bay occupate dai dischi 960GB SSD di base ",null,"Usati","Disponibili",null,null,null,null,{"$f":"M40+M33","v":2}]
[null,null,null,null,null,null,null,null,null,null,null,{"$f":"M40+M42+M44+M50+M52+M54+M56+M58+M46+M48","v":2},{"$f":"6-L38","v":4}]
[null,null,null,null,null,null,null,null,null,null,null,null,null,null,{"$f":"IF(M33=0,\"Selezionare Disk Controller H350 per aggiungere dischi\",\"\")","v":"Selezionare Disk Controller H350 per aggiungere dischi"}]
[null,null,null,null,null,null,null,null,null,"960GB SSD SATA Read Intensive 6Gbps",null,null,2]
[]
[null,null,null,null,null,null,null,null,null,{"$f":"ConfigurationTS4L8!A45","v":"3.84TB SSD SATA Read Intensive 6Gbps 512e 2.5in Hot-Plug"},null,{"$f":"VLOOKUP($J42,TS4L8_HDD,13,FALSE)","v":"TS4L8-SSD3.84RI"},0,null,{"$f":"S42+T42","v":0},null,null,null,null,{"$f":"VLOOKUP($J42,TS4L8_HDD,10,FALSE)*M42","v":0},{"$f":"VLOOKUP($J42,TS4L8_HDD,12,FALSE)","v":"L8N24"}]
[]
[null,null,null,null,null,null,null,null,null,{"$f":"ConfigurationTS4L8!A47","v":"1.92TB SSD SATA Read Intensive 6Gbps 512e 2.5in Hot-Plug"},null,{"$f":"VLOOKUP($J44,TS4L8_HDD,13,FALSE)","v":"TS4L8-SSD1.92RI"},0,null,{"$f":"S44+T44","v":0},null,null,null,null,{"$f":"VLOOKUP($J44,TS4L8_HDD,10,FALSE)*M44","v":0},{"$f":"VLOOKUP($J44,TS4L8_HDD,12,FALSE)","v":"L8N25"}]
[]
[null,null,null,null,null,null,null,null,null,{"$f":"ConfigurationTS4L8!D31","v":"2.4TB 10k 512e SAS ISE 12Gbps 2.5in Hot Plug Hard Drive"},null,{"$f":"VLOOKUP($J46,TS4L8_HDD,13,FALSE)","v":"TS4L8-HDD2TB"},0,null,{"$f":"S46","v":0},null,null,null,{"$f":"VLOOKUP($J46,TS4L8_HDD,10,FALSE)*M46","v":0},{"$f":"VLOOKUP($J46,TS4L8_HDD,11,FALSE)","v":0},{"$f":"VLOOKUP($J46,TS4L8_HDD,12,FALSE)","v":"L8N10"}]
[]
[null,null,null,null,null,null,null,null,null,{"$f":"ConfigurationTS4L8!A33","v":"1.2TB 10K RPM SAS ISE 12Gbps 512n 2.5in Hot-plug Hard Drive"},null,{"$f":"VLOOKUP($J48,TS4L8_HDD,13,FALSE)","v":"TS4L8-HDD1TB"},0,null,{"$f":"S48","v":0},null,null,null,{"$f":"VLOOKUP($J48,TS4L8_HDD,10,FALSE)*M48","v":0},{"$f":"VLOOKUP($J48,TS4L8_HDD,11,FALSE)","v":0},{"$f":"VLOOKUP($J48,TS4L8_HDD,12,FALSE)","v":"L8N09"}]
[]
[null,null,null,null,null,null,null,null,null,{"$f":"Tabella_prezzi!H15","v":"1.92TB SSD SAS ISE RI 12Gbps 512e 2.5in Hot-Plug 1 DWP"},null,{"$f":"VLOOKUP($J50,TS4L8_HDD,13,FALSE)","v":"TS4L8-RI1600GB"},0,null,{"$f":"S50","v":0},null,null,null,{"$f":"VLOOKUP($J50,TS4L8_HDD,10,FALSE)*M50","v":0},{"$f":"VLOOKUP($J50,TS4L8_HDD,11,FALSE)","v":0},{"$f":"VLOOKUP($J50,TS4L8_HDD,12,FALSE)","v":"L8N11"}]
[]
[null,null,null,null,null,null,null,null,null,{"$f":"ConfigurationTS4L8!A37","v":"3.84TB SSD SAS ISE RI 12Gbps 512e 2.5in PM6 Hot-Plug 1 DWPD"},null,{"$f":"VLOOKUP($J52,TS4L8_HDD,13,FALSE)","v":"TS4L8-RI3,8TB"},0,null,{"$f":"S52","v":0},null,null,null,{"$f":"VLOOKUP($J52,TS4L8_HDD,10,FALSE)*M52","v":0},{"$f":"VLOOKUP($J52,TS4L8_HDD,11,FALSE)","v":0},{"$f":"VLOOKUP($J52,TS4L8_HDD,12,FALSE)","v":"L8N12"}]
[]
[null,null,null,null,null,null,null,null,null,{"$f":"ConfigurationTS4L8!A39","v":"1.6TB SSD SAS ISE MU 12Gbps 512e 2.5in Hot-Plug PM6 3 DWPD"},null,{"$f":"VLOOKUP($J54,TS4L8_HDD,13,FALSE)","v":"TS4L8-MU1.6TB"},0,null,{"$f":"S54","v":0},null,null,null,{"$f":"VLOOKUP($J54,TS4L8_HDD,10,FALSE)*M54","v":0},{"$f":"VLOOKUP($J54,TS4L8_HDD,11,FALSE)","v":0},{"$f":"VLOOKUP($J54,TS4L8_HDD,12,FALSE)","v":"L8N13"}]
[]
[null,null,null,null,null,null,null,null,null,{"$f":"ConfigurationTS4L8!A41","v":"960GB SSD SAS ISE RI 12Gbps 512e 2.5in Hot-Plug 1 DWPD"},null,{"$f":"VLOOKUP($J56,TS4L8_HDD,13,FALSE)","v":"TS4L8-RI800GB"},0,null,{"$f":"S56","v":0},null,null,null,{"$f":"VLOOKUP($J56,TS4L8_HDD,10,FALSE)*M56","v":0},{"$f":"VLOOKUP($J56,TS4L8_HDD,11,FALSE)","v":0},{"$f":"VLOOKUP($J56,TS4L8_HDD,12,FALSE)","v":"L8N14"}]
[]
[null,null,null,null,null,null,null,null,null,{"$f":"ConfigurationTS4L8!A43","v":"SSD 960GB SAS RI 12Gbps 2.5in Hot-plug, 1 DWPD"},null,{"$f":"VLOOKUP($J58,TS4L8_HDD,13,FALSE)","v":"TS4L8-MU800GB"},0,null,{"$f":"S58","v":0},null,null,null,{"$f":"VLOOKUP($J58,TS4L8_HDD,10,FALSE)*M58","v":0},{"$f":"VLOOKUP($J58,TS4L8_HDD,11,FALSE)","v":0},{"$f":"VLOOKUP($J58,TS4L8_HDD,12,FALSE)","v":"L8N15"}]
[]
[null,null,null,null,null,null,null,null,null,"Embedded Systems Management"]
[null,null,null,null,null,null,null,null,null,"iDRAC9,Enterprise"]
[]
[]
[]
[null,null,null,null,null,null,null,null,null,"PCI Slot 1 Processor 1 x8 PCIe Gen4 for HL/FH"]
[null,null,null,null,null,null,null,null,null,"",null,{"$f":"VLOOKUP($J66,TS4L8_PCI,13,FALSE)","v":""},{"$f":"VLOOKUP($J66,TS4L8_PCI,7,FALSE)","v":0},null,{"$f":"S66+T66","v":0},null,null,null,{"$f":"VLOOKUP($J66,TS4L8_PCI,10,FALSE)*M66","v":0},{"$f":"VLOOKUP($J66,TS4L8_PCI,11,FALSE)*M66","v":0},{"$f":"VLOOKUP($J66,TS4L8_PCI,12,FALSE)","v":""}]
[]
[null,null,null,null,null,null,null,null,null,"SFP100GBs"]
[null,null,null,null,null,null,null,null,null,{"$f":"ConfigurationTS4L8!A62","v":"Dell EMC PowerEdge QSFP28 SR4 100GbE 85C optic"},null,{"$f":"VLOOKUP($J69,TS4L8_SFP,13,FALSE)","v":"TS4L8-OT100GB"},0,null,{"$f":"S69+T69","v":0},null,null,null,{"$f":"VLOOKUP($J69,TS4L8_SFP,10,FALSE)*M69","v":0},{"$f":"VLOOKUP($J69,TS4L8_SFP,11,FALSE)*M69","v":0},{"$f":"VLOOKUP($J69,TS4L8_SFP,12,FALSE)","v":"L8N28"}]
[]
[null,null,null,null,null,null,null,null,null,"Garanzia"]
[null,null,null,null,null,null,null,null,null,"Manutenzione in garanzia (36 mesi)",null,{"$f":"VLOOKUP($J72,TS4L8_GARANZIA,13,FALSE)","v":""},{"$f":"VLOOKUP($J72,TS4L8_GARANZIA,7,FALSE)","v":""},null,{"$f":"S72","v":0},null,null,null,{"$f":"VLOOKUP($J72,TS4L8_GARANZIA,10,FALSE)","v":0},{"$f":"VLOOKUP($J72,TS4L8_GARANZIA,11,FALSE)","v":0},{"$f":"VLOOKUP($J72,TS4L8_GARANZIA,12,FALSE)","v":""}]
[]
[null,null,null,null,null,null,null,null,null,"Hard Disk Retention",null,null,{"$f":"IF(AND(J75=\"Hard Disk Retention 60 mesi\",M72=\"\"),\"Selezionare Garanzia 60 Mesi\",\"\")","v":""}]
[null,null,null,null,null,null,null,null,null,"",null,{"$f":"VLOOKUP($J75,TS4L8_HDDRET,13,FALSE)","v":""},{"$f":"VLOOKUP($J75,TS4L8_HDDRET,7,FALSE)","v":0},null,{"$f":"S75","v":0},null,null,null,{"$f":"VLOOKUP($J75,TS4L8_HDDRET,10,FALSE)","v":0},{"$f":"VLOOKUP($J75,TS4L8_HDDRET,11,FALSE)","v":0},{"$f":"VLOOKUP($J75,TS4L8_HDDRET,12,FALSE)","v":""}]
[]
[null,null,null,null,null,null,null,null,null,null,null,"Configurazione",{"$f":"SUM(S13:S75)*M8","v":0}]
[null,null,null,null,null,null,null,null,null,null,null,0.2,{"$f":"SUM(T13:T75)*M8","v":0}]
[null,null,null,null,null,null,null,null,null,null,null,"Totale",{"$f":"SUM(M77:M78)","v":0}]
[]
[null,null,null,null,null,null,null,null,null,"NOTE"]

{"sheet":"Lotto8_C6400_2","index":2,"n_rows":81,"n_cols":21,"rows_kept":81,"cut":false,"hidden":false,"merged":[[1,9,2,9],[80,9,80,12],[81,9,92,12],[38,14,39,14],[58,11,58,12],[59,10,60,10],[59,14,60,15],[70,10,71,10],[73,10,74,10],[5,11,6,11],[11,10,12,10],[31,10,32,10],[33,14,37,14],[34,9,35,9],[36,9,37,9]]}
[]
[null,null,null,null,null,null,null,null,null,"Convenzione \nTecnologie Server 4 - Lotto 8",null,null,null,null,{"$f":"IF(O4>O6,\"Superata Quota 20%\",\"\")","v":""}]
[null,null,null,null,null,null,null,null,null,null,null,null,null,null,"Articoli 20% Totali"]
[null,null,null,null,null,null,null,null,null,null,null,null,"Totale Altre Opzioni",null,{"$f":"Riepilogo_Ordine!K51","v":0}]
[null,null,null,null,null,null,null,null,null,null,null,null,{"$f":"Altre_Opzioni!H3","v":0},null,"Quota Residua 20 %"]
[null,null,null,null,null,null,null,null,null,null,null,"Guida alla Convenzione","Totale Configurazione",null,{"$f":"Riepilogo_Ordine!G52","v":0}]
[null,null,null,null,null,null,null,null,null,null,null,null,{"$f":"M77+M78","v":0},null,"Totale Ordine\nIva Esclusa"]
[null,null,null,null,null,null,null,null,null,"DELL POWEREDGE C6400\n4 x C6525",null,"Quantità Server",0,null,{"$f":"Riepilogo_Ordine!K52","v":0}]
[]
[]
[]
[null,null,null,null,null,null,null,null,null,"Base"]
[null,null,null,null,null,null,null,null,null,"POWEREDGE C6400-R Enclosure ",null,{"$f":"IF($M$8>0,VLOOKUP(J13,ConfigurationTS4L8!1:3,13),\"\")","v":""},{"$f":"IF($M$8>0,1,\"\")","v":""},null,{"$f":"IF(M8>0,S13,\"\")","v":""},null,null,null,{"$f":"VLOOKUP($J13,TS4L8_SRV,10,FALSE)","v":10030.790000000001},null,{"$f":"VLOOKUP($J13,TS4L8_SRV,12,FALSE)","v":"L8N01"}]
[null,null,null,null,null,null,null,null,null,"PowerEdge C6525",null,null,{"$f":"IF($M$13>0,4,\"\")","v":4}]
[]
[null,null,null,null,null,null,null,null,null,"Chassis Configuration"]
[null,null,null,null,null,null,null,null,null,"Chassis with up to 24x2.5\" Drives"]
[]
[null,null,null,null,null,null,null,null,null,"Processor"]
[null,null,null,null,null,null,null,null,null,"AMD7413 2.65GHz,24C/48T,128M,180W,3200",null,{"$f":"VLOOKUP($J$20,TS4L8_CPU,13,FALSE)","v":"TS4L8-CPU"},{"$f":"VLOOKUP($J$20,TS4L8_CPU,7,FALSE)","v":4},null,null,null,null,null,{"$f":"VLOOKUP($J$20,TS4L8_CPU,11,FALSE)","v":0},{"$f":"VLOOKUP($J$20,TS4L8_CPU,11,FALSE)","v":0},{"$f":"VLOOKUP($J$20,TS4L8_CPU,11,FALSE)","v":0}]
[]
[null,null,null,null,null,null,null,null,null,"Additional Processor"]
[null,null,null,null,null,null,null,null,null,"No Additional Processor",null,{"$f":"VLOOKUP($J$23,ConfigurationTS4L8!1:1048576,13,FALSE)","v":""},{"$f":"VLOOKUP($J$23,TS4L8_CPU,7,FALSE)","v":0},null,{"$f":"S23","v":0},null,null,null,{"$f":"VLOOKUP($J$23,TS4L8_CPU,10,FALSE)","v":0},{"$f":"VLOOKUP($J$20,TS4L8_CPU,11,FALSE)","v":0},{"$f":"IF(J23=\"No Additional Processor\",\"\",VLOOKUP($J$20,TS4L8_CPU,12,FALSE))","v":""}]
[null,null,null,null,null,null,null,null,null,null,null,null,null,null,null,null,null,null,null,null,{"$f":"IF(L24=\"TS3L4-CPU\",\"L4N02\",0)","v":0}]
[null,null,null,null,null,null,null,null,null,"Memory Capacity (GB)",null,null,{"$f":"IF(AND(M26<6,M23>0),\"Selezionare Ram Corretta\",IF(AND(M23=0,M26>4),\"Selezionare Ram Corretta\",\"\"))","v":""}]
[null,null,null,null,null,null,null,null,null,"128GB Totali per Nodo",null,{"$f":"IF($M$23>0,VLOOKUP($J$26,TS4L8_RAM,13,),VLOOKUP($J$26,TS4L8_RAM,13,))","v":"TS4L8-RAM32"},{"$f":"IF($M$23>0,VLOOKUP($J$26,TS4L8_RAM,7,FALSE),VLOOKUP($J$26,TS4L8_RAM,7,FALSE))","v":0},null,{"$f":"S26","v":0},null,null,null,{"$f":"IF($M$23>0,VLOOKUP($J$26,TS4L8_RAM,10,FALSE),VLOOKUP($J$26,TS4L8_RAM,10,FALSE))","v":0},null,{"$f":"IF($M$23>0,VLOOKUP($J$26,TS4L8_RAM,12,FALSE),VLOOKUP($J$26,TS4L8_RAM,12,FALSE))","v":"L8N03"}]
[]
[null,null,null,null,null,null,null,null,null,"Operating System STANDARD"]
[null,null,null,null,null,null,null,null,null,"No Operating System",null,{"$f":"VLOOKUP($J$29,TS4L8_OS,13,FALSE)","v":""},{"$f":"IF(J29=\"Ubuntu 22.04 LTS 64 Bit\",4,\"\")","v":""},null,{"$f":"S29","v":0},null,null,null,{"$f":"VLOOKUP($J$29,TS4L8_OS,10,FALSE)*4","v":0},{"$f":"VLOOKUP($J$29,TS4L8_OS,11,FALSE)","v":0},{"$f":"VLOOKUP($J$29,TS4L8_OS,12,FALSE)","v":""}]
[]
[]
[null,null,null,null,null,null,null,null,null,"Disk Controller"]
[null,null,null,null,null,null,null,null,null,"No Controller",null,{"$f":"VLOOKUP($J$33,TS4L8_DiskController,13,FALSE)","v":""},{"$f":"VLOOKUP($J$33,TS4L8_DiskController,7,FALSE)","v":0}]
[null,null,null,null,null,null,null,null,null,null,null,null,null,null,{"$f":"IF(AND(M33>0,M66>0),\"Deselezionare Slot PCI\",\"\")","v":""}]
[null,null,null,null,null,null,null,null,null,"Hard Drive  Enclosure",null,"Usati","Disponibili"]
[null,null,null,null,null,null,null,null,null,null,null,{"$f":"SUM(M40:M58)*4","v":8},{"$f":"24-L36","v":16}]
[null,null,null,null,null,null,null,null,null,"Hard Drivers Bays n° 6 per ogni nodo - 2 bay occupate dai dischi 960GB SSD di base ",null,"Usati","Disponibili",null,null,null,null,{"$f":"M40+M33","v":2}]
[null,null,null,null,null,null,null,null,null,null,null,{"$f":"M40+M42+M44+M50+M52+M54+M56+M58+M46+M48","v":2},{"$f":"6-L38","v":4}]
[null,null,null,null,null,null,null,null,null,null,null,null,null,null,{"$f":"IF(M33=0,\"Selezionare Disk Controller H350 per aggiungere dischi\",\"\")","v":"Selezionare Disk Controller H350 per aggiungere dischi"}]
[null,null,null,null,null,null,null,null,null,"960GB SSD SATA Read Intensive 6Gbps",null,null,2]
[]
[null,null,null,null,null,null,null,null,null,{"$f":"ConfigurationTS4L8!A45","v":"3.84TB SSD SATA Read Intensive 6Gbps 512e 2.5in Hot-Plug"},null,{"$f":"VLOOKUP($J42,TS4L8_HDD,13,FALSE)","v":"TS4L8-SSD3.84RI"},0,null,{"$f":"S42+T42","v":0},null,null,null,null,{"$f":"VLOOKUP($J42,TS4L8_HDD,10,FALSE)*M42","v":0},{"$f":"VLOOKUP($J42,TS4L8_HDD,12,FALSE)","v":"L8N24"}]
[]
[null,null,null,null,null,null,null,null,null,{"$f":"ConfigurationTS4L8!A47","v":"1.92TB SSD SATA Read Intensive 6Gbps 512e 2.5in Hot-Plug"},null,{"$f":"VLOOKUP($J44,TS4L8_HDD,13,FALSE)","v":"TS4L8-SSD1.92RI"},0,null,{"$f":"S44+T44","v":0},null,null,null,null,{"$f":"VLOOKUP($J44,TS4L8_HDD,10,FALSE)*M44","v":0},{"$f":"VLOOKUP($J44,TS4L8_HDD,12,FALSE)","v":"L8N25"}]
[]
[null,null,null,null,null,null,null,null,null,{"$f":"ConfigurationTS4L8!D31","v":"2.4TB 10k 512e SAS ISE 12Gbps 2.5in Hot Plug Hard Drive"},null,{"$f":"VLOOKUP($J46,TS4L8_HDD,13,FALSE)","v":"TS4L8-HDD2TB"},0,null,{"$f":"S46","v":0},null,null,null,{"$f":"VLOOKUP($J46,TS4L8_HDD,10,FALSE)*M46","v":0},{"$f":"VLOOKUP($J46,TS4L8_HDD,11,FALSE)","v":0},{"$f":"VLOOKUP($J46,TS4L8_HDD,12,FALSE)","v":"L8N10"}]
[]
[null,null,null,null,null,null,null,null,null,{"$f":"ConfigurationTS4L8!A33","v":"1.2TB 10K RPM SAS ISE 12Gbps 512n 2.5in Hot-plug Hard Drive"},null,{"$f":"VLOOKUP($J48,TS4L8_HDD,13,FALSE)","v":"TS4L8-HDD1TB"},0,null,{"$f":"S48","v":0},null,null,null,{"$f":"VLOOKUP($J48,TS4L8_HDD,10,FALSE)*M48","v":0},{"$f":"VLOOKUP($J48,TS4L8_HDD,11,FALSE)","v":0},{"$f":"VLOOKUP($J48,TS4L8_HDD,12,FALSE)","v":"L8N09"}]
[]
[null,null,null,null,null,null,null,null,null,{"$f":"Tabella_prezzi!H15","v":"1.92TB SSD SAS ISE RI 12Gbps 512e 2.5in Hot-Plug 1 DWP"},null,{"$f":"VLOOKUP($J50,TS4L8_HDD,13,FALSE)","v":"TS4L8-RI1600GB"},0,null,{"$f":"S50","v":0},null,null,null,{"$f":"VLOOKUP($J50,TS4L8_HDD,10,FALSE)*M50","v":0},{"$f":"VLOOKUP($J50,TS4L8_HDD,11,FALSE)","v":0},{"$f":"VLOOKUP($J50,TS4L8_HDD,12,FALSE)","v":"L8N11"}]
[]
[null,null,null,null,null,null,null,null,null,{"$f":"ConfigurationTS4L8!A37","v":"3.84TB SSD SAS ISE RI 12Gbps 512e 2.5in PM6 Hot-Plug 1 DWPD"},null,{"$f":"VLOOKUP($J52,TS4L8_HDD,13,FALSE)","v":"TS4L8-RI3,8TB"},0,null,{"$f":"S52","v":0},null,null,null,{"$f":"VLOOKUP($J52,TS4L8_HDD,10,FALSE)*M52","v":0},{"$f":"VLOOKUP($J52,TS4L8_HDD,11,FALSE)","v":0},{"$f":"VLOOKUP($J52,TS4L8_HDD,12,FALSE)","v":"L8N12"}]
[]
[null,null,null,null,null,null,null,null,null,{"$f":"ConfigurationTS4L8!A39","v":"1.6TB SSD SAS ISE MU 12Gbps 512e 2.5in Hot-Plug PM6 3 DWPD"},null,{"$f":"VLOOKUP($J54,TS4L8_HDD,13,FALSE)","v":"TS4L8-MU1.6TB"},0,null,{"$f":"S54","v":0},null,null,null,{"$f":"VLOOKUP($J54,TS4L8_HDD,10,FALSE)*M54","v":0},{"$f":"VLOOKUP($J54,TS4L8_HDD,11,FALSE)","v":0},{"$f":"VLOOKUP($J54,TS4L8_HDD,12,FALSE)","v":"L8N13"}]
[]
[null,null,null,null,null,null,null,null,null,{"$f":"ConfigurationTS4L8!A41","v":"960GB SSD SAS ISE RI 12Gbps 512e 2.5in Hot-Plug 1 DWPD"},null,{"$f":"VLOOKUP($J56,TS4L8_HDD,13,FALSE)","v":"TS4L8-RI800GB"},0,null,{"$f":"S56","v":0},null,null,null,{"$f":"VLOOKUP($J56,TS4L8_HDD,10,FALSE)*M56","v":0},{"$f":"VLOOKUP($J56,TS4L8_HDD,11,FALSE)","v":0},{"$f":"VLOOKUP($J56,TS4L8_HDD,12,FALSE)","v":"L8N14"}]
[]
[null,null,null,null,null,null,null,null,null,{"$f":"ConfigurationTS4L8!A43","v":"SSD 960GB SAS RI 12Gbps 2.5in Hot-plug, 1 DWPD"},null,{"$f":"VLOOKUP($J58,TS4L8_HDD,13,FALSE)","v":"TS4L8-MU800GB"},0,null,{"$f":"S58","v":0},null,null,null,{"$f":"VLOOKUP($J58,TS4L8_HDD,10,FALSE)*M58","v":0},{"$f":"VLOOKUP($J58,TS4L8_HDD,11,FALSE)","v":0},{"$f":"VLOOKUP($J58,TS4L8_HDD,12,FALSE)","v":"L8N15"}]
[]
[null,null,null,null,null,null,null,null,null,"Embedded Systems Management"]
[null,null,null,null,null,null,null,null,null,"iDRAC9,Enterprise"]
[]
[]
[]
[null,null,null,null,null,null,null,null,null,"PCI Slot 1 Processor 1 x8 PCIe Gen4 for HL/FH"]
[null,null,null,null,null,null,null,null,null,"",null,{"$f":"VLOOKUP($J66,TS4L8_PCI,13,FALSE)","v":""},{"$f":"VLOOKUP($J66,TS4L8_PCI,7,FALSE)","v":0},null,{"$f":"S66+T66","v":0},null,null,null,{"$f":"VLOOKUP($J66,TS4L8_PCI,10,FALSE)*M66","v":0},{"$f":"VLOOKUP($J66,TS4L8_PCI,11,FALSE)*M66","v":0},{"$f":"VLOOKUP($J66,TS4L8_PCI,12,FALSE)","v":""}]
[]
[null,null,null,null,null,null,null,null,null,"SFP100GBs"]
[null,null,null,null,null,null,null,null,null,{"$f":"ConfigurationTS4L8!A62","v":"Dell EMC PowerEdge QSFP28 SR4 100GbE 85C optic"},null,{"$f":"VLOOKUP($J69,TS4L8_SFP,13,FALSE)","v":"TS4L8-OT100GB"},0,null,{"$f":"S69+T69","v":0},null,null,null,{"$f":"VLOOKUP($J69,TS4L8_SFP,10,FALSE)*M69","v":0},{"$f":"VLOOKUP($J69,TS4L8_SFP,11,FALSE)*M69","v":0},{"$f":"VLOOKUP($J69,TS4L8_SFP,12,FALSE)","v":"L8N28"}]
[]
[null,null,null,null,null,null,null,null,null,"Garanzia"]
[null,null,null,null,null,null,null,null,null,"Manutenzione in garanzia (36 mesi)",null,{"$f":"VLOOKUP($J72,TS4L8_GARANZIA,13,FALSE)","v":""},{"$f":"VLOOKUP($J72,TS4L8_GARANZIA,7,FALSE)","v":""},null,{"$f":"S72","v":0},null,null,null,{"$f":"VLOOKUP($J72,TS4L8_GARANZIA,10,FALSE)","v":0},{"$f":"VLOOKUP($J72,TS4L8_GARANZIA,11,FALSE)","v":0},{"$f":"VLOOKUP($J72,TS4L8_GARANZIA,12,FALSE)","v":""}]
[]
[null,null,null,null,null,null,null,null,null,"Hard Disk Retention",null,null,{"$f":"IF(AND(J75=\"Hard Disk Retention 60 mesi\",M72=\"\"),\"Selezionare Garanzia 60 Mesi\",\"\")","v":""}]
[null,null,null,null,null,null,null,null,null,"",null,{"$f":"VLOOKUP($J75,TS4L8_HDDRET,13,FALSE)","v":""},{"$f":"VLOOKUP($J75,TS4L8_HDDRET,7,FALSE)","v":0},null,{"$f":"S75","v":0},null,null,null,{"$f":"VLOOKUP($J75,TS4L8_HDDRET,10,FALSE)","v":0},{"$f":"VLOOKUP($J75,TS4L8_HDDRET,11,FALSE)","v":0},{"$f":"VLOOKUP($J75,TS4L8_HDDRET,12,FALSE)","v":""}]
[]
[null,null,null,null,null,null,null,null,null,null,null,"Configurazione",{"$f":"SUM(S13:S75)*M8","v":0}]
[null,null,null,null,null,null,null,null,null,null,null,0.2,{"$f":"SUM(T13:T75)*M8","v":0}]
[null,null,null,null,null,null,null,null,null,null,null,"Totale",{"$f":"SUM(M77:M78)","v":0}]
[]
[null,null,null,null,null,null,null,null,null,"NOTE"]

{"sheet":"Lotto8_C6400_3","index":3,"n_rows":81,"n_cols":21,"rows_kept":81,"cut":false,"hidden":false,"merged":[[1,9,2,9],[80,9,80,12],[81,9,92,12],[38,14,39,14],[58,11,58,12],[59,10,60,10],[59,14,60,15],[70,10,71,10],[73,10,74,10],[5,11,6,11],[11,10,12,10],[31,10,32,10],[33,14,37,14],[34,9,35,9],[36,9,37,9]]}
[]
[null,null,null,null,null,null,null,null,null,"Convenzione \nTecnologie Server 4 - Lotto 8",null,null,null,null,{"$f":"IF(O4>O6,\"Superata Quota 20%\",\"\")","v":""}]
[null,null,null,null,null,null,null,null,null,null,null,null,null,null,"Articoli 20% Totali"]
[null,null,null,null,null,null,null,null,null,null,null,null,"Totale Altre Opzioni",null,{"$f":"Riepilogo_Ordine!K51","v":0}]
[null,null,null,null,null,null,null,null,null,null,null,null,{"$f":"Altre_Opzioni!H3","v":0},null,"Quota Residua 20 %"]
[null,null,null,null,null,null,null,null,null,null,null,"Guida alla Convenzione","Totale Configurazione",null,{"$f":"Riepilogo_Ordine!G52","v":0}]
[null,null,null,null,null,null,null,null,null,null,null,null,{"$f":"M77+M78","v":0},null,"Totale Ordine\nIva Esclusa"]
[null,null,null,null,null,null,null,null,null,"DELL POWEREDGE C6400\n4 x C6525",null,"Quantità Server",0,null,{"$f":"Riepilogo_Ordine!K52","v":0}]
[]
[]
[]
[null,null,null,null,null,null,null,null,null,"Base"]
[null,null,null,null,null,null,null,null,null,"POWEREDGE C6400-R Enclosure ",null,{"$f":"IF($M$8>0,VLOOKUP(J13,ConfigurationTS4L8!1:3,13),\"\")","v":""},{"$f":"IF($M$8>0,1,\"\")","v":""},null,{"$f":"IF(M8>0,S13,\"\")","v":""},null,null,null,{"$f":"VLOOKUP($J13,TS4L8_SRV,10,FALSE)","v":10030.790000000001},null,{"$f":"VLOOKUP($J13,TS4L8_SRV,12,FALSE)","v":"L8N01"}]
[null,null,null,null,null,null,null,null,null,"PowerEdge C6525",null,null,{"$f":"IF($M$13>0,4,\"\")","v":4}]
[]
[null,null,null,null,null,null,null,null,null,"Chassis Configuration"]
[null,null,null,null,null,null,null,null,null,"Chassis with up to 24x2.5\" Drives"]
[]
[null,null,null,null,null,null,null,null,null,"Processor"]
[null,null,null,null,null,null,null,null,null,"AMD7413 2.65GHz,24C/48T,128M,180W,3200",null,{"$f":"VLOOKUP($J$20,TS4L8_CPU,13,FALSE)","v":"TS4L8-CPU"},{"$f":"VLOOKUP($J$20,TS4L8_CPU,7,FALSE)","v":4},null,null,null,null,null,{"$f":"VLOOKUP($J$20,TS4L8_CPU,11,FALSE)","v":0},{"$f":"VLOOKUP($J$20,TS4L8_CPU,11,FALSE)","v":0},{"$f":"VLOOKUP($J$20,TS4L8_CPU,11,FALSE)","v":0}]
[]
[null,null,null,null,null,null,null,null,null,"Additional Processor"]
[null,null,null,null,null,null,null,null,null,"No Additional Processor",null,{"$f":"VLOOKUP($J$23,ConfigurationTS4L8!1:1048576,13,FALSE)","v":""},{"$f":"VLOOKUP($J$23,TS4L8_CPU,7,FALSE)","v":0},null,{"$f":"S23","v":0},null,null,null,{"$f":"VLOOKUP($J$23,TS4L8_CPU,10,FALSE)","v":0},{"$f":"VLOOKUP($J$20,TS4L8_CPU,11,FALSE)","v":0},{"$f":"IF(J23=\"No Additional Processor\",\"\",VLOOKUP($J$20,TS4L8_CPU,12,FALSE))","v":""}]
[null,null,null,null,null,null,null,null,null,null,null,null,null,null,null,null,null,null,null,null,{"$f":"IF(L24=\"TS3L4-CPU\",\"L4N02\",0)","v":0}]
[null,null,null,null,null,null,null,null,null,"Memory Capacity (GB)",null,null,{"$f":"IF(AND(M26<6,M23>0),\"Selezionare Ram Corretta\",IF(AND(M23=0,M26>4),\"Selezionare Ram Corretta\",\"\"))","v":""}]
[null,null,null,null,null,null,null,null,null,"128GB Totali per Nodo",null,{"$f":"IF($M$23>0,VLOOKUP($J$26,TS4L8_RAM,13,),VLOOKUP($J$26,TS4L8_RAM,13,))","v":"TS4L8-RAM32"},{"$f":"IF($M$23>0,VLOOKUP($J$26,TS4L8_RAM,7,FALSE),VLOOKUP($J$26,TS4L8_RAM,7,FALSE))","v":0},null,{"$f":"S26","v":0},null,null,null,{"$f":"IF($M$23>0,VLOOKUP($J$26,TS4L8_RAM,10,FALSE),VLOOKUP($J$26,TS4L8_RAM,10,FALSE))","v":0},null,{"$f":"IF($M$23>0,VLOOKUP($J$26,TS4L8_RAM,12,FALSE),VLOOKUP($J$26,TS4L8_RAM,12,FALSE))","v":"L8N03"}]
[]
[null,null,null,null,null,null,null,null,null,"Operating System STANDARD"]
[null,null,null,null,null,null,null,null,null,"No Operating System",null,{"$f":"VLOOKUP($J$29,TS4L8_OS,13,FALSE)","v":""},{"$f":"IF(J29=\"Ubuntu 22.04 LTS 64 Bit\",4,\"\")","v":""},null,{"$f":"S29","v":0},null,null,null,{"$f":"VLOOKUP($J$29,TS4L8_OS,10,FALSE)*4","v":0},{"$f":"VLOOKUP($J$29,TS4L8_OS,11,FALSE)","v":0},{"$f":"VLOOKUP($J$29,TS4L8_OS,12,FALSE)","v":""}]
[]
[]
[null,null,null,null,null,null,null,null,null,"Disk Controller"]
[null,null,null,null,null,null,null,null,null,"No Controller",null,{"$f":"VLOOKUP($J$33,TS4L8_DiskController,13,FALSE)","v":""},{"$f":"VLOOKUP($J$33,TS4L8_DiskController,7,FALSE)","v":0}]
[null,null,null,null,null,null,null,null,null,null,null,null,null,null,{"$f":"IF(AND(M33>0,M66>0),\"Deselezionare Slot PCI\",\"\")","v":""}]
[null,null,null,null,null,null,null,null,null,"Hard Drive  Enclosure",null,"Usati","Disponibili"]
[null,null,null,null,null,null,null,null,null,null,null,{"$f":"SUM(M40:M58)*4","v":8},{"$f":"24-L36","v":16}]
[null,null,null,null,null,null,null,null,null,"Hard Drivers Bays n° 6 per ogni nodo - 2 bay occupate dai dischi 960GB SSD di base ",null,"Usati","Disponibili",null,null,null,null,{"$f":"M40+M33","v":2}]
[null,null,null,null,null,null,null,null,null,null,null,{"$f":"M40+M42+M44+M50+M52+M54+M56+M58+M46+M48","v":2},{"$f":"6-L38","v":4}]
[null,null,null,null,null,null,null,null,null,null,null,null,null,null,{"$f":"IF(M33=0,\"Selezionare Disk Controller H350 per aggiungere dischi\",\"\")","v":"Selezionare Disk Controller H350 per aggiungere dischi"}]
[null,null,null,null,null,null,null,null,null,"960GB SSD SATA Read Intensive 6Gbps",null,null,2]
[]
[null,null,null,null,null,null,null,null,null,{"$f":"ConfigurationTS4L8!A45","v":"3.84TB SSD SATA Read Intensive 6Gbps 512e 2.5in Hot-Plug"},null,{"$f":"VLOOKUP($J42,TS4L8_HDD,13,FALSE)","v":"TS4L8-SSD3.84RI"},0,null,{"$f":"S42+T42","v":0},null,null,null,null,{"$f":"VLOOKUP($J42,TS4L8_HDD,10,FALSE)*M42","v":0},{"$f":"VLOOKUP($J42,TS4L8_HDD,12,FALSE)","v":"L8N24"}]
[]
[null,null,null,null,null,null,null,null,null,{"$f":"ConfigurationTS4L8!A47","v":"1.92TB SSD SATA Read Intensive 6Gbps 512e 2.5in Hot-Plug"},null,{"$f":"VLOOKUP($J44,TS4L8_HDD,13,FALSE)","v":"TS4L8-SSD1.92RI"},0,null,{"$f":"S44+T44","v":0},null,null,null,null,{"$f":"VLOOKUP($J44,TS4L8_HDD,10,FALSE)*M44","v":0},{"$f":"VLOOKUP($J44,TS4L8_HDD,12,FALSE)","v":"L8N25"}]
[]
[null,null,null,null,null,null,null,null,null,{"$f":"ConfigurationTS4L8!D31","v":"2.4TB 10k 512e SAS ISE 12Gbps 2.5in Hot Plug Hard Drive"},null,{"$f":"VLOOKUP($J46,TS4L8_HDD,13,FALSE)","v":"TS4L8-HDD2TB"},0,null,{"$f":"S46","v":0},null,null,null,{"$f":"VLOOKUP($J46,TS4L8_HDD,10,FALSE)*M46","v":0},{"$f":"VLOOKUP($J46,TS4L8_HDD,11,FALSE)","v":0},{"$f":"VLOOKUP($J46,TS4L8_HDD,12,FALSE)","v":"L8N10"}]
[]
[null,null,null,null,null,null,null,null,null,{"$f":"ConfigurationTS4L8!A33","v":"1.2TB 10K RPM SAS ISE 12Gbps 512n 2.5in Hot-plug Hard Drive"},null,{"$f":"VLOOKUP($J48,TS4L8_HDD,13,FALSE)","v":"TS4L8-HDD1TB"},0,null,{"$f":"S48","v":0},null,null,null,{"$f":"VLOOKUP($J48,TS4L8_HDD,10,FALSE)*M48","v":0},{"$f":"VLOOKUP($J48,TS4L8_HDD,11,FALSE)","v":0},{"$f":"VLOOKUP($J48,TS4L8_HDD,12,FALSE)","v":"L8N09"}]
[]
[null,null,null,null,null,null,null,null,null,{"$f":"Tabella_prezzi!H15","v":"1.92TB SSD SAS ISE RI 12Gbps 512e 2.5in Hot-Plug 1 DWP"},null,{"$f":"VLOOKUP($J50,TS4L8_HDD,13,FALSE)","v":"TS4L8-RI1600GB"},0,null,{"$f":"S50","v":0},null,null,null,{"$f":"VLOOKUP($J50,TS4L8_HDD,10,FALSE)*M50","v":0},{"$f":"VLOOKUP($J50,TS4L8_HDD,11,FALSE)","v":0},{"$f":"VLOOKUP($J50,TS4L8_HDD,12,FALSE)","v":"L8N11"}]
[]
[null,null,null,null,null,null,null,null,null,{"$f":"ConfigurationTS4L8!A37","v":"3.84TB SSD SAS ISE RI 12Gbps 512e 2.5in PM6 Hot-Plug 1 DWPD"},null,{"$f":"VLOOKUP($J52,TS4L8_HDD,13,FALSE)","v":"TS4L8-RI3,8TB"},0,null,{"$f":"S52","v":0},null,null,null,{"$f":"VLOOKUP($J52,TS4L8_HDD,10,FALSE)*M52","v":0},{"$f":"VLOOKUP($J52,TS4L8_HDD,11,FALSE)","v":0},{"$f":"VLOOKUP($J52,TS4L8_HDD,12,FALSE)","v":"L8N12"}]
[]
[null,null,null,null,null,null,null,null,null,{"$f":"ConfigurationTS4L8!A39","v":"1.6TB SSD SAS ISE MU 12Gbps 512e 2.5in Hot-Plug PM6 3 DWPD"},null,{"$f":"VLOOKUP($J54,TS4L8_HDD,13,FALSE)","v":"TS4L8-MU1.6TB"},0,null,{"$f":"S54","v":0},null,null,null,{"$f":"VLOOKUP($J54,TS4L8_HDD,10,FALSE)*M54","v":0},{"$f":"VLOOKUP($J54,TS4L8_HDD,11,FALSE)","v":0},{"$f":"VLOOKUP($J54,TS4L8_HDD,12,FALSE)","v":"L8N13"}]
[]
[null,null,null,null,null,null,null,null,null,{"$f":"ConfigurationTS4L8!A41","v":"960GB SSD SAS ISE RI 12Gbps 512e 2.5in Hot-Plug 1 DWPD"},null,{"$f":"VLOOKUP($J56,TS4L8_HDD,13,FALSE)","v":"TS4L8-RI800GB"},0,null,{"$f":"S56","v":0},null,null,null,{"$f":"VLOOKUP($J56,TS4L8_HDD,10,FALSE)*M56","v":0},{"$f":"VLOOKUP($J56,TS4L8_HDD,11,FALSE)","v":0},{"$f":"VLOOKUP($J56,TS4L8_HDD,12,FALSE)","v":"L8N14"}]
[]
[null,null,null,null,null,null,null,null,null,{"$f":"ConfigurationTS4L8!A43","v":"SSD 960GB SAS RI 12Gbps 2.5in Hot-plug, 1 DWPD"},null,{"$f":"VLOOKUP($J58,TS4L8_HDD,13,FALSE)","v":"TS4L8-MU800GB"},0,null,{"$f":"S58","v":0},null,null,null,{"$f":"VLOOKUP($J58,TS4L8_HDD,10,FALSE)*M58","v":0},{"$f":"VLOOKUP($J58,TS4L8_HDD,11,FALSE)","v":0},{"$f":"VLOOKUP($J58,TS4L8_HDD,12,FALSE)","v":"L8N15"}]
[]
[null,null,null,null,null,null,null,null,null,"Embedded Systems Management"]
[null,null,null,null,null,null,null,null,null,"iDRAC9,Enterprise"]
[]
[]
[]
[null,null,null,null,null,null,null,null,null,"PCI Slot 1 Processor 1 x8 PCIe Gen4 for HL/FH"]
[null,null,null,null,null,null,null,null,null,"",null,{"$f":"VLOOKUP($J66,TS4L8_PCI,13,FALSE)","v":""},{"$f":"VLOOKUP($J66,TS4L8_PCI,7,FALSE)","v":0},null,{"$f":"S66+T66","v":0},null,null,null,{"$f":"VLOOKUP($J66,TS4L8_PCI,10,FALSE)*M66","v":0},{"$f":"VLOOKUP($J66,TS4L8_PCI,11,FALSE)*M66","v":0},{"$f":"VLOOKUP($J66,TS4L8_PCI,12,FALSE)","v":""}]
[]
[null,null,null,null,null,null,null,null,null,"SFP100GBs"]
[null,null,null,null,null,null,null,null,null,{"$f":"ConfigurationTS4L8!A62","v":"Dell EMC PowerEdge QSFP28 SR4 100GbE 85C optic"},null,{"$f":"VLOOKUP($J69,TS4L8_SFP,13,FALSE)","v":"TS4L8-OT100GB"},0,null,{"$f":"S69+T69","v":0},null,null,null,{"$f":"VLOOKUP($J69,TS4L8_SFP,10,FALSE)*M69","v":0},{"$f":"VLOOKUP($J69,TS4L8_SFP,11,FALSE)*M69","v":0},{"$f":"VLOOKUP($J69,TS4L8_SFP,12,FALSE)","v":"L8N28"}]
[]
[null,null,null,null,null,null,null,null,null,"Garanzia"]
[null,null,null,null,null,null,null,null,null,"Manutenzione in garanzia (36 mesi)",null,{"$f":"VLOOKUP($J72,TS4L8_GARANZIA,13,FALSE)","v":""},{"$f":"VLOOKUP($J72,TS4L8_GARANZIA,7,FALSE)","v":""},null,{"$f":"S72","v":0},null,null,null,{"$f":"VLOOKUP($J72,TS4L8_GARANZIA,10,FALSE)","v":0},{"$f":"VLOOKUP($J72,TS4L8_GARANZIA,11,FALSE)","v":0},{"$f":"VLOOKUP($J72,TS4L8_GARANZIA,12,FALSE)","v":""}]
[]
[null,null,null,null,null,null,null,null,null,"Hard Disk Retention",null,null,{"$f":"IF(AND(J75=\"Hard Disk Retention 60 mesi\",M72=\"\"),\"Selezionare Garanzia 60 Mesi\",\"\")","v":""}]
[null,null,null,null,null,null,null,null,null,"",null,{"$f":"VLOOKUP($J75,TS4L8_HDDRET,13,FALSE)","v":""},{"$f":"VLOOKUP($J75,TS4L8_HDDRET,7,FALSE)","v":0},null,{"$f":"S75","v":0},null,null,null,{"$f":"VLOOKUP($J75,TS4L8_HDDRET,10,FALSE)","v":0},{"$f":"VLOOKUP($J75,TS4L8_HDDRET,11,FALSE)","v":0},{"$f":"VLOOKUP($J75,TS4L8_HDDRET,12,FALSE)","v":""}]
[]
[null,null,null,null,null,null,null,null,null,null,null,"Configurazione",{"$f":"SUM(S13:S75)*M8","v":0}]
[null,null,null,null,null,null,null,null,null,null,null,0.2,{"$f":"SUM(T13:T75)*M8","v":0}]
[null,null,null,null,null,null,null,null,null,null,null,"Totale",{"$f":"SUM(M77:M78)","v":0}]
[]
[null,null,null,null,null,null,null,null,null,"NOTE"]

{"sheet":"Altre_Opzioni","index":4,"n_rows":19,"n_cols":14,"rows_kept":19,"cut":false,"hidden":false,"merged":[[9,5,10,5],[13,5,14,5],[17,5,18,5],[1,7,1,9],[5,5,6,5]]}
[]
[null,null,null,null,"Opzioni",null,null,"Totale altre opzioni"]
[null,null,null,null,null,null,null,{"$f":"SUM(J7:J19)","v":0}]
[]
[]
[null,null,null,null,"OpzRack"]
[null,null,null,null,{"$f":"ConfigurationTS4L8!A83","v":"Armadio Rack 42U"},null,{"$f":"VLOOKUP($E7,Altre_Opzioni,13,FALSE)","v":"TS4L8-RACK"},0,null,{"$f":"L7","v":0},null,{"$f":"VLOOKUP($E7,Altre_Opzioni,10,FALSE)*H7","v":0},{"$f":"VLOOKUP($E7,Altre_Opzioni,11,FALSE)","v":0},{"$f":"VLOOKUP($E7,Altre_Opzioni,12,FALSE)","v":"L8N22"}]
[]
[]
[null,null,null,null,"OpzUps (3000VA)"]
[null,null,null,null,{"$f":"ConfigurationTS4L8!A78","v":"Dispositivo UPS di tipo On-line doppia conversione, strutturato per il montaggio a rack da 19”"},null,{"$f":"VLOOKUP($E11,Altre_Opzioni,13,FALSE)","v":"TS4L8-UPS"},0,null,{"$f":"L11","v":0},null,{"$f":"VLOOKUP($E11,Altre_Opzioni,10,FALSE)*H11","v":0},{"$f":"VLOOKUP($E11,Altre_Opzioni,11,FALSE)*I11","v":0},{"$f":"VLOOKUP($E11,Altre_Opzioni,12,FALSE)","v":"L8N16"}]
[]
[]
[null,null,null,null,"OpzGUI"]
[null,null,null,null,{"$f":"ConfigurationTS4L8!A79","v":"Console KVM GUI da rack"},null,{"$f":"VLOOKUP($E15,Altre_Opzioni,13,FALSE)","v":"TS4L8-GUI"},0,null,{"$f":"L15","v":0},null,{"$f":"VLOOKUP($E15,Altre_Opzioni,10,FALSE)*H15","v":0},{"$f":"VLOOKUP($E15,Altre_Opzioni,11,FALSE)*H15","v":0},{"$f":"VLOOKUP($E15,Altre_Opzioni,12,FALSE)","v":"L8N17"}]
[]
[]
[null,null,null,null,"OpzKVM"]
[null,null,null,null,{"$f":"ConfigurationTS4L8!A80","v":"KVM Switch IP per GUI 16P"},null,{"$f":"VLOOKUP($E19,Altre_Opzioni,13,FALSE)","v":"TS4L8-SWKVM"},0,null,{"$f":"L19","v":0},null,{"$f":"VLOOKUP($E19,Altre_Opzioni,10,FALSE)*H19","v":0},{"$f":"VLOOKUP($E19,Altre_Opzioni,11,FALSE)*H19","v":0},{"$f":"VLOOKUP($E19,Altre_Opzioni,12,FALSE)","v":"L8N18"}]

{"sheet":"Riepilogo_Ordine","index":5,"n_rows":55,"n_cols":25,"rows_kept":55,"cut":false,"hidden":false,"merged":[[1,8,3,10],[7,7,7,8],[7,9,7,10],[4,10,5,10],[5,8,5,9],[1,5,1,7],[2,5,2,7],[3,5,3,7],[6,5,6,6],[7,5,7,6],[4,5,4,7],[5,5,5,7],[4,8,4,9],[6,7,6,8],[6,9,6,10],[49,5,49,6],[49,8,49,9],[50,8,50,9],[51,8,51,9],[52,5,52,6],[52,8,52,9],[8,5,8,6],[9,5,9,6],[11,5,11,10],[38,5,38,10],[9,7,9,8],[9,9,9,10],[8,7,8,8],[8,9,8,10]]}
[]
[null,null,null,null,null,"Convenzione \nTecnologie Server 4 - Lotto 8",null,null,{"$f":"IF(P8>0,\"Compilare i Dati Necessari (*) all'Ordine per Stampare in PDF\",\"Dati Completi\")","v":"Compilare i Dati Necessari (*) all'Ordine per Stampare in PDF"},null,null,null,null,null,null,null,null,null,null,null,null,null,null,null,"SI"]
[null,null,null,null,null,"Riepilogo Ordine Consip N° (*)",null,null,null,null,null,null,null,null,null,null,null,{"$f":"IF(Lotto8_C6400_1!M8>0,1,0)","v":0},{"$f":"IF(Lotto8_C6400_2!M8>0,1,0)","v":0},{"$f":"IF(Lotto8_C6400_3!M8>0,1,0)","v":0},null,{"$f":"SUM(R3:T3)","v":0},null,null,"SI"]
[null,null,null,null,null,null,null,null,null,null,null,null,null,null,null,null,null,null,null,null,null,null,null,null,"SI"]
[null,null,null,null,null,"Ente Ordinante (*)",null,null,"Data Ordine  (*)",null,null,null,null,null,null,"Ordine","Ente","data","Ref Cons","mail","tel","Ref Inst","mail","Tel","SI"]
[null,null,null,null,null,null,null,null,null,null,null,null,null,null,null,{"$f":"IF(F4>0,0,1)","v":1},{"$f":"IF(F6>0,0,1)","v":1},{"$f":"IF(I6>0,0,1)","v":1},{"$f":"IF(F8>0,0,1)","v":1},{"$f":"IF(H8>0,0,1)","v":1},{"$f":"IF(J8>0,0,1)","v":1},{"$f":"IF(F10>0,0,1)","v":1},{"$f":"IF(H10>0,0,1)","v":1},{"$f":"IF(J10>0,0,1)","v":1},"SI"]
[null,null,null,null,null,"Referente Consegna  (*)",null,"Mail  (*)",null,"Tel  (*)",null,null,null,null,null,null,null,null,null,null,null,null,null,null,"SI"]
[null,null,null,null,null,null,null,null,null,null,null,null,null,null,null,{"$f":"SUM(P6:X6)","v":9},null,null,null,null,null,null,null,null,"SI"]
[null,null,null,null,null,"Referente Installazione  (*)",null,"Mail  (*)",null,"Tel  (*)",null,null,null,null,null,null,null,null,null,null,null,null,null,null,"SI"]
[null,null,null,null,null,null,null,null,null,null,null,null,null,null,null,null,null,null,null,null,null,null,null,null,"SI"]
[null,null,null,null,null,null,null,null,null,null,null,null,null,null,null,null,null,null,null,null,null,null,null,null,"SI"]
[null,null,null,null,null,"Articoli in convenzione",null,null,null,null,null,null,null,null,null,null,null,"Config 1","Config 2","Config 3","Totale",null,null,null,"SI"]
[null,null,null,null,null,"Codice Produttore","Codice Convenzione","Descrizione","Qtà","Costo unitario","Costo Totale",null,null,null,null,"N°","Codice Convenzione",{"$f":"Lotto8_C6400_1!M8","v":0},{"$f":"Lotto8_C6400_2!M8","v":0},{"$f":"Lotto8_C6400_3!M8","v":0},null,null,null,null,"SI"]
[null,null,null,null,null,{"$f":"IF(I14=\"\",\"\",VLOOKUP(P14,Tabella_Prezzi,9,FALSE))","v":""},{"$f":"IF(I14=\"\",\"\",VLOOKUP(P14,Tabella_Prezzi,6,FALSE))","v":""},{"$f":"IF(I14=\"\",\"\",VLOOKUP(P14,Tabella_Prezzi,8,FALSE))","v":""},{"$f":"IF(U14>0,U14,\"\")","v":""},{"$f":"IF(I14=\"\",\"\",VLOOKUP(P14,Tabella_Prezzi,4,FALSE))","v":""},{"$f":"IF(F14=\"\",\"\",J14*I14)","v":""},null,null,null,null,"L8N01","TS4L8-SRV",{"$f":"COUNTIF(TS4L8_1,P14)*$R$13","v":0},{"$f":"COUNTIF(TS4L8_2,P14)*$S$13","v":0},{"$f":"COUNTIF(TS4L8_3,P14)*$T$13","v":0},{"$f":"SUM(R14:T14)","v":0},null,null,null,{"$f":"IF(I14<>\"\",\"SI\",\"NO\")","v":"NO"}]
[null,null,null,null,null,"","","",{"$f":"IF(U15>0,U15,\"\")","v":""},"",{"$f":"IF(F15=\"\",\"\",J15*I15)","v":""},null,null,null,null,"L8N02","TS4L8-CPU",{"$f":"COUNTIF(TS4L8_1,P15)*V19*$R$13","v":0},{"$f":"COUNTIF(TS4L8_2,P15)*W19*$S$13","v":0},{"$f":"COUNTIF(TS4L8_3,P15)*X19*$T$13","v":0},0,null,null,null,{"$f":"IF(I15<>\"\",\"SI\",\"NO\")","v":"NO"}]
[null,null,null,null,null,"","","","","","",null,null,null,null,"L8N03","TS4L8-RAM32",{"$f":"COUNTIF(TS4L8_1,P16)*Lotto8_C6400_1!M26*V19*$R$13","v":0},{"$f":"COUNTIF(TS4L8_2,P16)*Lotto8_C6400_2!M27*W19*S13","v":0},{"$f":"COUNTIF(TS4L8_3,P16)*Lotto8_C6400_3!M27*X19*T13","v":0},0,null,null,null,{"$f":"IF(I16<>\"\",\"SI\",\"NO\")","v":"NO"}]
[null,null,null,null,null,"","","","","","",null,null,null,null,"L8N04","TS4L8-RAM64",{"$f":"COUNTIF(TS4L8_1,P17)*Lotto8_C6400_1!M26*V19*$R$13","v":0},{"$f":"COUNTIF(TS4L8_2,P17)*Lotto8_C6400_2!M27*W19*S14","v":0},{"$f":"COUNTIF(TS4L8_3,P17)*Lotto8_C6400_3!M27*X19*T14","v":0},0,null,null,null,"NO"]
[null,null,null,null,null,"","","","","","",null,null,null,null,"L8N05","TS4L8-BaseT",{"$f":"COUNTIF(TS4L8_1,P18)*V19*$R$13","v":0},{"$f":"COUNTIF(TS4L8_2,P18)*W19*$S$13","v":0},{"$f":"COUNTIF(TS4L8_3,P18)*X19*$T$13","v":0},0,null,null,null,"NO"]
[null,null,null,null,null,"","","","","","",null,null,null,null,"L8N06","TS4L8-LAN10",{"$f":"COUNTIF(TS4L8_1,P19)*W19*$R$13","v":0},{"$f":"COUNTIF(TS4L8_2,P19)*W19*$S$13","v":0},{"$f":"COUNTIF(TS4L8_3,P19)*X19*$T$13","v":0},0,4,4,4,"NO"]
[null,null,null,null,null,"","","","","","",null,null,null,null,"L8N07","TS4L8-LAN25",{"$f":"COUNTIF(TS4L8_1,P20)*V19*$R$13","v":0},{"$f":"COUNTIF(TS4L8_2,P20)*W19*$S$13","v":0},{"$f":"COUNTIF(TS4L8_3,P20)*X19*$T$13","v":0},0,null,null,null,"NO"]
[null,null,null,null,null,"","","","","","",null,null,null,null,"L8N08","TS4L8-CNA10",{"$f":"COUNTIF(TS4L8_1,P21)*V19*$R$13","v":0},{"$f":"COUNTIF(TS4L8_2,P21)*W19*$S$13","v":0},{"$f":"COUNTIF(TS4L8_3,P21)*X19*$T$13","v":0},0,"Quantità 1","Quantità 2","Quantità 3","NO"]
[null,null,null,null,null,"","","","","","",null,null,null,null,"L8N09","TS4L8-HDD1TB",{"$f":"COUNTIF(TS4L8_1,P22)*V22*$R$13","v":0},{"$f":"COUNTIF(TS4L8_2,P22)*W22*$S$13","v":0},{"$f":"COUNTIF(TS4L8_3,P22)*X22*$T$13","v":0},0,{"$f":"Lotto8_C6400_1!M48*V19","v":0},{"$f":"Lotto8_C6400_2!M48*W19","v":0},{"$f":"Lotto8_C6400_3!M48*X19","v":0},"NO"]
[null,null,null,null,null,"","","","","","",null,null,null,null,"L8N10","TS4L8-HDD2TB",0,0,0,0,{"$f":"Lotto8_C6400_1!M46*V19","v":0},{"$f":"Lotto8_C6400_2!M46*W19","v":0},{"$f":"Lotto8_C6400_3!M46*X19","v":0},"NO"]
[null,null,null,null,null,"","","","","","",null,null,null,null,"L8N11","TS4L8-SSD-RI1,6TB",0,0,0,0,{"$f":"Lotto8_C6400_1!M50*V19","v":0},{"$f":"Lotto8_C6400_2!M50*W19","v":0},{"$f":"Lotto8_C6400_3!M50*X19","v":0},"NO"]
[null,null,null,null,null,"","","","","","",null,null,null,null,"L8N12","TS4L8-SSD-RI3,8TB",0,0,0,0,{"$f":"Lotto8_C6400_1!M52*V19","v":0},{"$f":"Lotto8_C6400_2!M52*W19","v":0},{"$f":"Lotto8_C6400_3!M52*X19","v":0},"NO"]
[null,null,null,null,null,"","","","","","",null,null,null,null,"L8N13","TS4L8-SSD-MU1,6TB",0,0,0,0,{"$f":"Lotto8_C6400_1!M54*V19","v":0},{"$f":"Lotto8_C6400_2!M54*W19","v":0},{"$f":"Lotto8_C6400_3!M54*X19","v":0},"NO"]
[null,null,null,null,null,"","","","","","",null,null,null,null,"L8N14","TS4L8-SSD-RI800GB",0,0,0,0,{"$f":"Lotto8_C6400_1!M56*V19","v":0},{"$f":"Lotto8_C6400_2!M56*W19","v":0},{"$f":"Lotto8_C6400_3!M56*X19","v":0},"NO"]
[null,null,null,null,null,"","","","","","",null,null,null,null,"L8N15","TS4L8-SSD-MU800GB",0,0,0,0,{"$f":"Lotto8_C6400_1!M58*V19","v":0},{"$f":"Lotto8_C6400_2!M58*W19","v":0},{"$f":"Lotto8_C6400_3!M58*X19","v":0},"NO"]
[null,null,null,null,null,"","","","","","",null,null,null,null,"L8N16","TS4L8-UPS",null,null,null,{"$f":"Altre_Opzioni!H11","v":0},null,null,null,"NO"]
[null,null,null,null,null,"","","","","","",null,null,null,null,"L8N17","TS4L8-GUI",null,null,null,{"$f":"Altre_Opzioni!H15","v":0},null,null,null,"NO"]
[null,null,null,null,null,"","","","","","",null,null,null,null,"L8N18","TS4L8-SWKVM",null,null,null,{"$f":"Altre_Opzioni!H19","v":0},null,null,null,"NO"]
[null,null,null,null,null,"","","","","","",null,null,null,null,"L8N19","TS4L8-LINUX",{"$f":"COUNTIF(TS4L8_1,P32)*V19*$R$13","v":0},{"$f":"COUNTIF(TS4L8_2,P32)*W19*$S$13","v":0},{"$f":"COUNTIF(TS4L8_3,P32)*X19*$T$13","v":0},0,null,null,null,"NO"]
[null,null,null,null,null,{"$f":"IF(I33=\"\",\"\",VLOOKUP(P33,Tabella_Prezzi,9,FALSE))","v":""},{"$f":"IF(I33=\"\",\"\",VLOOKUP(P33,Tabella_Prezzi,6,FALSE))","v":""},"",{"$f":"IF(U33>0,U33,\"\")","v":""},{"$f":"IF(I33=\"\",\"\",VLOOKUP(P33,Tabella_Prezzi,4,FALSE))","v":""},{"$f":"IF(F33=\"\",\"\",J33*I33)","v":""},null,null,null,null,"L8N20","TS4L8-HDRTNTN60",{"$f":"COUNTIF(TS4L8_1,P33)*$R$13","v":0},{"$f":"COUNTIF(TS4L8_2,P33)*$S$13","v":0},{"$f":"COUNTIF(TS4L8_3,P33)*$T$13","v":0},{"$f":"SUM(R33:T33)","v":0},null,null,null,"NO"]
[null,null,null,null,null,"","","","","","",null,null,null,null,"L8N20e","TS4L8-HDRTNTN60",{"$f":"COUNTIF(TS4L8_1,P34)*$R$13","v":0},{"$f":"COUNTIF(TS4L8_2,P34)*$S$13","v":0},{"$f":"COUNTIF(TS4L8_3,P34)*$T$13","v":0},0,null,null,null,"NO"]
[null,null,null,null,null,"","","","","","",null,null,null,null,"L8N21","TS4L8-OpzEst24",{"$f":"COUNTIF(TS4L8_1,P35)*$R$13","v":0},{"$f":"COUNTIF(TS4L8_2,P35)*$S$13","v":0},{"$f":"COUNTIF(TS4L8_3,P35)*$T$13","v":0},0,null,null,null,"NO"]
[null,null,null,null,null,"","","","","","",null,null,null,null,"L8N22","TS4L8-RACK",null,null,null,{"$f":"Altre_Opzioni!H7","v":0},null,null,null,"NO"]
[null,null,null,null,null,null,null,null,null,null,null,null,null,null,null,null,null,null,null,null,null,null,null,null,"SI"]
[null,null,null,null,null,null,null,null,null,null,null,null,null,null,null,null,null,null,null,null,null,null,null,null,"SI"]
[null,null,null,null,null,"Opzioni 20 %",null,null,null,null,null,null,null,null,null,null,null,"Config 1","Config 2","Config 3","Totale",null,null,null,{"$f":"IF(K51>0,\"SI\",\"NO\")","v":"NO"}]
[null,null,null,null,null,"Codice Produttore","Codice Convenzione","Descrizione","Qtà","Costo unitario","Costo Totale",null,null,null,null,"N°","Codice Convenzione",{"$f":"Lotto8_C6400_1!M8","v":0},0,0,{"$f":"SUM(R40:T40)","v":0},"Quantità 1","Quantità 2","Quantità 3",{"$f":"IF(K51>0,\"SI\",\"NO\")","v":"NO"}]
[null,null,null,null,null,{"$f":"IF(I41=\"\",\"\",VLOOKUP(P41,Tabella_Prezzi,9,FALSE))","v":""},{"$f":"IF(I41=\"\",\"\",VLOOKUP(P41,Tabella_Prezzi,6,FALSE))","v":""},{"$f":"IF(I36=\"\",\"\",VLOOKUP(P36,Tabella_Prezzi,8,FALSE))","v":""},{"$f":"IF(U41>0,U41,\"\")","v":""},{"$f":"IF(I41=\"\",\"\",VLOOKUP(P41,Tabella_Prezzi,4,FALSE))","v":""},{"$f":"IF(F41=\"\",\"\",J41*I41)","v":""},null,null,null,null,"L8N24","TS4L8-SSD-3,84TB",{"$f":"COUNTIF(TS4L8_1,P41)*V41*$R$13","v":0},{"$f":"COUNTIF(TS4L8_2,Q41)*W41*$R$13","v":0},{"$f":"COUNTIF(TS4L8_3,R41)*X41*$R$13","v":0},{"$f":"SUM(R41:T41)","v":0},{"$f":"Lotto8_C6400_1!M42*V19","v":0},null,null,{"$f":"IF($I41<>\"\",\"SI\",\"NO\")","v":"NO"}]
[null,null,null,null,null,"","",{"$f":"IF(I37=\"\",\"\",VLOOKUP(P37,Tabella_Prezzi,8,FALSE))","v":""},"","","",null,null,null,null,"L8N25","TS4L8-SSD-1,92TB",{"$f":"COUNTIF(TS4L8_1,P42)*V42*$R$13","v":0},{"$f":"COUNTIF(TS4L8_2,Q42)*W42*$R$13","v":0},{"$f":"COUNTIF(TS4L8_3,R42)*X42*$R$13","v":0},0,{"$f":"Lotto8_C6400_1!M44*V19","v":0},null,null,{"$f":"IF($I42<>\"\",\"SI\",\"NO\")","v":"NO"}]
[null,null,null,null,null,"","",{"$f":"IF(I38=\"\",\"\",VLOOKUP(P38,Tabella_Prezzi,8,FALSE))","v":""},"","","",null,null,null,null,"L8N26","TS4L8-CX6",{"$f":"COUNTIF(TS4L8_1,P43)*V43*$R$13","v":0},{"$f":"COUNTIF(TS4L8_2,Q43)*W43*$R$13","v":0},{"$f":"COUNTIF(TS4L8_3,R43)*X43*$R$13","v":0},0,{"$f":"Lotto8_C6400_1!M66","v":0},null,null,{"$f":"IF($I43<>\"\",\"SI\",\"NO\")","v":"NO"}]
[null,null,null,null,null,"","",{"$f":"IF(I39=\"\",\"\",VLOOKUP(P39,Tabella_Prezzi,8,FALSE))","v":""},"","","",null,null,null,null,"L8N27","TS4L8-CX6-100",{"$f":"COUNTIF(TS4L8_1,P44)*V44*$R$13","v":0},{"$f":"COUNTIF(TS4L8_2,Q44)*W44*$R$13","v":0},{"$f":"COUNTIF(TS4L8_3,R44)*X44*$R$13","v":0},0,{"$f":"Lotto8_C6400_1!M66","v":0},null,null,{"$f":"IF($I44<>\"\",\"SI\",\"NO\")","v":"NO"}]
[null,null,null,null,null,{"$f":"IF(I45=\"\",\"\",VLOOKUP(P45,Tabella_Prezzi,9,FALSE))","v":""},{"$f":"IF(I45=\"\",\"\",VLOOKUP(P45,Tabella_Prezzi,6,FALSE))","v":""},{"$f":"IF(I45=\"\",\"\",VLOOKUP(P45,Tabella_Prezzi,8,FALSE))","v":""},{"$f":"IF(U45>0,U45,\"\")","v":""},{"$f":"IF(I45=\"\",\"\",VLOOKUP(P45,Tabella_Prezzi,4,FALSE))","v":""},{"$f":"IF(F45=\"\",\"\",J45*I45)","v":""},null,null,null,null,"L8N28","TS4L8-OT100GB",{"$f":"COUNTIF(TS4L8_1,P45)*V45*$R$13","v":0},{"$f":"COUNTIF(TS4L8_2,Q45)*W45*$R$13","v":0},{"$f":"COUNTIF(TS4L8_3,R45)*X45*$R$13","v":0},{"$f":"SUM(R45:T45)","v":0},{"$f":"Lotto8_C6400_1!M69","v":0},null,null,{"$f":"IF($I45<>\"\",\"SI\",\"NO\")","v":"NO"}]
[null,null,null,null,null,null,null,null,null,null,null,null,null,null,null,null,null,null,null,null,null,null,null,null,"SI"]
[]
[]
[null,null,null,null,null,null,null,null,null,null,null,null,null,null,null,null,null,null,null,null,null,null,null,null,"SI"]
[null,null,null,null,null,null,null,null,"Totale Convenzione",null,{"$f":"SUM(K14:K36)","v":0},null,null,null,null,null,null,null,null,null,null,null,null,null,"SI"]
[null,null,null,null,null,"Quota Massima 20%",{"$f":"K53*0.2","v":0},null,"Totale 20%",null,{"$f":"SUM(K41:K45)","v":0},null,null,null,null,null,null,null,null,null,null,null,null,null,"SI"]
[null,null,null,null,null,"Quota Residua 20%",{"$f":"G51-K51","v":0},null,"Totale Iva Esclusa",null,{"$f":"K51+K50","v":0},null,null,null,null,null,null,null,null,null,null,null,null,null,"SI"]
[null,null,null,null,null,null,null,null,"Totale Ordine",null,{"$f":"K52*1.22","v":0},null,null,null,null,null,null,null,null,null,null,null,null,null,"SI"]
[null,null,null,null,null,null,null,null,null,null,null,null,null,null,null,null,null,null,null,null,null,null,null,null,"SI"]
[null,null,null,null,null,null,null,null,null,null,null,null,null,null,null,null,null,null,null,null,null,null,null,null,"SI"]

{"sheet":"ConfigurationTS4L8","index":6,"n_rows":101,"n_cols":21,"rows_kept":101,"cut":false,"hidden":true,"merged":[]}
[1,2,3,4,5,6,7,8,9,10,11,12,13]
["POWEREDGE C6400-R Enclosure ",null,null,{"$f":"VLOOKUP($L$2,Tabella_prezzi!$A$1:$J$186,8,FALSE)","v":"DELL PowerEdge C6400 con 4 x DELL PowerEdge C6525"},null,null,1,{"$f":"VLOOKUP(L2,Tabella_prezzi!$A$1:$J$186,3,FALSE)","v":"Server rackable high-density"},{"$f":"VLOOKUP(L2,Tabella_prezzi!$A$1:$J$186,9,FALSE)","v":"L8N01-ServerC6525"},{"$f":"VLOOKUP(L2,Tabella_prezzi!$A$1:$J$186,4,FALSE)","v":10030.790000000001},null,"L8N01",{"$f":"VLOOKUP(L2,Tabella_prezzi!$A$1:$J$186,6,FALSE)","v":"TS4L8-SRV"},{"$f":"\"\"","v":""}]
[]
["TS4L8_CPU"]
["No Additional Processor",null,null,null,null,null,0,null,{"$f":"\"\"","v":""},null,null,{"$f":"\"\"","v":""},{"$f":"\"\"","v":""}]
[{"$f":"D6","v":"AMD7413 2.65GHz,24C/48T,128M,180W,3200"},null,null,{"$f":"VLOOKUP($L$6,Tabella_prezzi!$A$1:$J$186,8,FALSE)","v":"AMD7413 2.65GHz,24C/48T,128M,180W,3200"},null,null,4,{"$f":"VLOOKUP($L$6,Tabella_prezzi!$A$1:$J$186,3,FALSE)","v":"Kit n. 1 Processore aggiuntivo"},{"$f":"VLOOKUP($L$6,Tabella_prezzi!$A$1:$J$186,9,FALSE)","v":"L8N02-OpzCPU"},{"$f":"VLOOKUP($L$6,Tabella_Prezzi,4,FALSE)*4","v":2288.6799999999998},null,"L8N02",{"$f":"VLOOKUP($L$6,Tabella_prezzi!$A$1:$J$186,6,FALSE)","v":"TS4L8-CPU"}]
[]
["TS4L8_RAM (1CPU)"]
["128GB Totali per Nodo","Memory Capacity",null,{"$f":"Tabella_prezzi!$H$4","v":"32GB - 2Rx4 DDR4 RDIMM 3200MHz"},"*","AA799110",0,{"$f":"VLOOKUP(L9,Tabella_prezzi!$A$1:$J$186,3,FALSE)","v":"OpzRAM32GB"},{"$f":"VLOOKUP(L9,Tabella_prezzi!$A$1:$J$186,9,FALSE)","v":"L8N03-OpzRAM32GB"},{"$f":"VLOOKUP(L9,Tabella_prezzi!$A$1:$J$186,4,FALSE)*G9*4","v":0},null,"L8N03",{"$f":"VLOOKUP(L9,Tabella_prezzi!$A$1:$J$186,6,FALSE)","v":"TS4L8-RAM32"}]
["192GB Totali per Nodo","Memory Capacity",null,{"$f":"Tabella_prezzi!$H$4","v":"32GB - 2Rx4 DDR4 RDIMM 3200MHz"},"*","AA799110",2,{"$f":"VLOOKUP(L10,Tabella_prezzi!$A$1:$J$186,3,FALSE)","v":"OpzRAM32GB"},{"$f":"VLOOKUP(L10,Tabella_prezzi!$A$1:$J$186,9,FALSE)","v":"L8N03-OpzRAM32GB"},{"$f":"VLOOKUP(L10,Tabella_prezzi!$A$1:$J$186,4,FALSE)*G10*4","v":2109.12},null,"L8N03",{"$f":"VLOOKUP(L10,Tabella_prezzi!$A$1:$J$186,6,FALSE)","v":"TS4L8-RAM32"}]
["256GB Totali per Nodo","Memory Capacity",null,{"$f":"Tabella_prezzi!$H$4","v":"32GB - 2Rx4 DDR4 RDIMM 3200MHz"},null,"AA799110",4,{"$f":"VLOOKUP(L11,Tabella_prezzi!$A$1:$J$186,3,FALSE)","v":"OpzRAM32GB"},{"$f":"VLOOKUP(L11,Tabella_prezzi!$A$1:$J$186,9,FALSE)","v":"L8N03-OpzRAM32GB"},{"$f":"VLOOKUP(L11,Tabella_prezzi!$A$1:$J$186,4,FALSE)*G11*4","v":4218.24},null,"L8N03",{"$f":"VLOOKUP(L11,Tabella_prezzi!$A$1:$J$186,6,FALSE)","v":"TS4L8-RAM32"}]
["320GB Totali per Nodo","Memory Capacity",null,{"$f":"Tabella_prezzi!$H$4","v":"32GB - 2Rx4 DDR4 RDIMM 3200MHz"},null,"AA799110",6,{"$f":"VLOOKUP(L12,Tabella_prezzi!$A$1:$J$186,3,FALSE)","v":"OpzRAM32GB"},{"$f":"VLOOKUP(L12,Tabella_prezzi!$A$1:$J$186,9,FALSE)","v":"L8N03-OpzRAM32GB"},{"$f":"VLOOKUP(L12,Tabella_prezzi!$A$1:$J$186,4,FALSE)*G12*4","v":6327.36},null,"L8N03",{"$f":"VLOOKUP(L12,Tabella_prezzi!$A$1:$J$186,6,FALSE)","v":"TS4L8-RAM32"}]
["384GB Totali per Nodo","Memory Capacity",null,{"$f":"Tabella_prezzi!$H$4","v":"32GB - 2Rx4 DDR4 RDIMM 3200MHz"},null,"AA799110",8,{"$f":"VLOOKUP(L13,Tabella_prezzi!$A$1:$J$186,3,FALSE)","v":"OpzRAM32GB"},{"$f":"VLOOKUP(L13,Tabella_prezzi!$A$1:$J$186,9,FALSE)","v":"L8N03-OpzRAM32GB"},{"$f":"VLOOKUP(L13,Tabella_prezzi!$A$1:$J$186,4,FALSE)*G13*4","v":8436.48},null,"L8N03",{"$f":"VLOOKUP(L13,Tabella_prezzi!$A$1:$J$186,6,FALSE)","v":"TS4L8-RAM32"}]
["448GB Totali per Nodo","Memory Capacity",null,{"$f":"Tabella_prezzi!$H$4","v":"32GB - 2Rx4 DDR4 RDIMM 3200MHz"},null,"AA799110",10,{"$f":"VLOOKUP(L14,Tabella_prezzi!$A$1:$J$186,3,FALSE)","v":"OpzRAM32GB"},{"$f":"VLOOKUP(L14,Tabella_prezzi!$A$1:$J$186,9,FALSE)","v":"L8N03-OpzRAM32GB"},{"$f":"VLOOKUP(L14,Tabella_prezzi!$A$1:$J$186,4,FALSE)*G14*4","v":10545.599999999999},null,"L8N03",{"$f":"VLOOKUP(L14,Tabella_prezzi!$A$1:$J$186,6,FALSE)","v":"TS4L8-RAM32"}]
["512GB Totali per Nodo","Memory Capacity",null,{"$f":"Tabella_prezzi!$H$4","v":"32GB - 2Rx4 DDR4 RDIMM 3200MHz"},null,"AA799110",12,{"$f":"VLOOKUP(L15,Tabella_prezzi!$A$1:$J$186,3,FALSE)","v":"OpzRAM32GB"},{"$f":"VLOOKUP(L15,Tabella_prezzi!$A$1:$J$186,9,FALSE)","v":"L8N03-OpzRAM32GB"},{"$f":"VLOOKUP(L15,Tabella_prezzi!$A$1:$J$186,4,FALSE)*G15*4","v":12654.72},null,"L8N03",{"$f":"VLOOKUP(L15,Tabella_prezzi!$A$1:$J$186,6,FALSE)","v":"TS4L8-RAM32"}]
[]
["128GB Totali (1 x 64GB DIMM + 2 x 32GB DIMM per Nodo) ⚠","Memory Capacity",null,"32GB RDIMM, 3200MT/s, Dual Rank","*","AA799087",2,{"$f":"VLOOKUP(L17,Tabella_prezzi!$A$1:$J$186,3,FALSE)","v":"OpzRAM32GB"},{"$f":"VLOOKUP(L17,Tabella_prezzi!$A$1:$J$186,9,FALSE)","v":"L8N03-OpzRAM32GB"},{"$f":"VLOOKUP(L17,Tabella_prezzi!$A$1:$J$186,4,FALSE)*G17*4","v":2109.12},null,"L8N03",{"$f":"VLOOKUP(L17,Tabella_prezzi!$A$1:$J$186,6,FALSE)","v":"TS4L8-RAM32"}]
["256GB Totali (1 x 64GB DIMM + 6 x 32GB DIMM per Nodo) ⚠","Memory Capacity",null,"32GB RDIMM, 3200MT/s, Dual Rank","*","AA799087",6,{"$f":"VLOOKUP(L18,Tabella_prezzi!$A$1:$J$186,3,FALSE)","v":"OpzRAM32GB"},{"$f":"VLOOKUP(L18,Tabella_prezzi!$A$1:$J$186,9,FALSE)","v":"L8N03-OpzRAM32GB"},{"$f":"VLOOKUP(L18,Tabella_prezzi!$A$1:$J$186,4,FALSE)*G18*4","v":6327.36},null,"L8N03",{"$f":"VLOOKUP(L18,Tabella_prezzi!$A$1:$J$186,6,FALSE)","v":"TS4L8-RAM32"}]
["512GB Totali (1 x 64GB DIMM + 14 x 32GB DIMM per Nodo) ⚠","Memory Capacity",null,"32GB RDIMM, 3200MT/s, Dual Rank","*","AA799087",6,{"$f":"VLOOKUP(L19,Tabella_prezzi!$A$1:$J$186,3,FALSE)","v":"OpzRAM32GB"},{"$f":"VLOOKUP(L19,Tabella_prezzi!$A$1:$J$186,9,FALSE)","v":"L8N03-OpzRAM32GB"},{"$f":"VLOOKUP(L19,Tabella_prezzi!$A$1:$J$186,4,FALSE)*G19*4","v":6327.36},null,"L8N03",{"$f":"VLOOKUP(L19,Tabella_prezzi!$A$1:$J$186,6,FALSE)","v":"TS4L8-RAM32"}]
[]
[]
["128GB Totali (1 x 64GB DIMM + 2 x 32GB DIMM per Nodo) ⚠","Memory Capacity",null,"32GB RDIMM, 3200MT/s, Dual Rank","*","AA799087",2,{"$f":"VLOOKUP(L22,Tabella_prezzi!$A$1:$J$186,3,FALSE)","v":"OpzRAM32GB"},{"$f":"VLOOKUP(L22,Tabella_prezzi!$A$1:$J$186,9,FALSE)","v":"L8N03-OpzRAM32GB"},{"$f":"VLOOKUP(L22,Tabella_prezzi!$A$1:$J$186,4,FALSE)*G22*4","v":2109.12},null,"L8N03",{"$f":"VLOOKUP(L22,Tabella_prezzi!$A$1:$J$186,6,FALSE)","v":"TS4L8-RAM32"}]
["256GB Totali (1 x 64GB DIMM + 6 x 32GB DIMM per Nodo) ⚠","Memory Capacity",null,"32GB RDIMM, 3200MT/s, Dual Rank","*","AA799087",6,{"$f":"VLOOKUP(L23,Tabella_prezzi!$A$1:$J$186,3,FALSE)","v":"OpzRAM32GB"},{"$f":"VLOOKUP(L23,Tabella_prezzi!$A$1:$J$186,9,FALSE)","v":"L8N03-OpzRAM32GB"},{"$f":"VLOOKUP(L23,Tabella_prezzi!$A$1:$J$186,4,FALSE)*G23*4","v":6327.36},null,"L8N03",{"$f":"VLOOKUP(L23,Tabella_prezzi!$A$1:$J$186,6,FALSE)","v":"TS4L8-RAM32"}]
["TS4L8_OS"]
["No Operating System","Operating System",null,null,null,null,0,null,{"$f":"\"\"","v":""},null,null,{"$f":"\"\"","v":""},{"$f":"\"\"","v":""},0,null,{"$f":"\"\"","v":""},{"$f":"\"\"","v":""},null,0,0,{"$f":"\"\"","v":""}]
[{"$f":"D26","v":"Ubuntu 22.04 LTS 64 Bit"},"Operating System",null,{"$f":"VLOOKUP(L26,Tabella_prezzi!$A$1:$J$186,8,FALSE)","v":"Ubuntu 22.04 LTS 64 Bit"},null,null,4,{"$f":"VLOOKUP(L26,Tabella_prezzi!$A$1:$J$186,3,FALSE)","v":"OpzOpenSource"},{"$f":"VLOOKUP(L26,Tabella_prezzi!$A$1:$J$186,9,FALSE)","v":"L8N19-OpzOpenSource"},{"$f":"VLOOKUP(L26,Tabella_prezzi!$A$1:$J$186,4,FALSE)","v":31.82},null,"L8N19",{"$f":"VLOOKUP(L26,Tabella_prezzi!$A$1:$J$186,6,FALSE)","v":"TS4L8-OpenSource"},8,{"$f":"VLOOKUP(T26,Tabella_prezzi!$A$1:$J$186,3,FALSE)","v":"OpzRack"},{"$f":"VLOOKUP(T26,Tabella_prezzi!$A$1:$J$186,9,FALSE)","v":"L8N22-OpzRack"},{"$f":"VLOOKUP(T26,Tabella_prezzi!$A$1:$J$186,4,FALSE)*N26*4","v":18548.16},null,0,"L8N22",{"$f":"VLOOKUP(T26,Tabella_prezzi!$A$1:$J$186,6,FALSE)","v":"TS4L8-RACK"}]
["[TS4L8-LINUX] Ubuntu 18.04 LTS 64 Bit","Operating System",null,{"$f":"VLOOKUP(L27,Tabella_prezzi!$A$1:$J$186,8,FALSE)","v":{"$error":"#N/A"}},null,null,1,{"$f":"VLOOKUP(L27,Tabella_prezzi!$A$1:$J$186,3,FALSE)","v":{"$error":"#N/A"}},{"$f":"VLOOKUP(L27,Tabella_prezzi!$A$1:$J$186,9,FALSE)","v":{"$error":"#N/A"}},{"$f":"VLOOKUP(L27,Tabella_prezzi!$A$1:$J$186,4,FALSE)*4","v":{"$error":"#N/A"}},null,"L8N23",{"$f":"VLOOKUP(L27,Tabella_prezzi!$A$1:$J$186,6,FALSE)","v":{"$error":"#N/A"}},0,null,{"$f":"\"\"","v":""},{"$f":"\"\"","v":""},null,0,0,{"$f":"\"\"","v":""}]
[]
["TS4L8_HDD"]
[{"$f":"\"\"","v":""},null,null,null,null,null,0,null,{"$f":"\"\"","v":""},null,null,{"$f":"\"\"","v":""},{"$f":"\"\"","v":""}]
[{"$f":"D31","v":"2.4TB 10k 512e SAS ISE 12Gbps 2.5in Hot Plug Hard Drive"},"Hard Drives",null,{"$f":"VLOOKUP(L31,Tabella_prezzi!$A$1:$J$186,8,FALSE)","v":"2.4TB 10k 512e SAS ISE 12Gbps 2.5in Hot Plug Hard Drive"},null,null,1,{"$f":"VLOOKUP(L31,Tabella_prezzi!$A$1:$J$186,3,FALSE)","v":"OpzHDD2TB"},{"$f":"VLOOKUP(L31,Tabella_prezzi!$A$1:$J$186,9,FALSE)","v":"L8N10-OpzHDD2TB"},{"$f":"VLOOKUP(L31,Tabella_prezzi!$A$1:$J$186,4,FALSE)*4","v":666.6},null,"L8N10",{"$f":"VLOOKUP(L31,Tabella_prezzi!$A$1:$J$186,6,FALSE)","v":"TS4L8-HDD2TB"}]
[]
[{"$f":"D33","v":"1.2TB 10K RPM SAS ISE 12Gbps 512n 2.5in Hot-plug Hard Drive"},"Hard Drives",null,{"$f":"VLOOKUP(L33,Tabella_prezzi!$A$1:$J$186,8,FALSE)","v":"1.2TB 10K RPM SAS ISE 12Gbps 512n 2.5in Hot-plug Hard Drive"},null,null,1,{"$f":"VLOOKUP(L33,Tabella_prezzi!$A$1:$J$186,3,FALSE)","v":"OpzHDD1TB"},{"$f":"VLOOKUP(L33,Tabella_prezzi!$A$1:$J$186,9,FALSE)","v":"L8N09-OpzHDD1TB"},{"$f":"VLOOKUP(L33,Tabella_prezzi!$A$1:$J$186,4,FALSE)*4","v":333.32},null,"L8N09",{"$f":"VLOOKUP(L33,Tabella_prezzi!$A$1:$J$186,6,FALSE)","v":"TS4L8-HDD1TB"}]
[]
[{"$f":"D35","v":"1.92TB SSD SAS ISE RI 12Gbps 512e 2.5in Hot-Plug 1 DWP"},"Hard Drives",null,{"$f":"VLOOKUP(L35,Tabella_prezzi!$A$1:$J$186,8,FALSE)","v":"1.92TB SSD SAS ISE RI 12Gbps 512e 2.5in Hot-Plug 1 DWP"},null,null,1,{"$f":"VLOOKUP(L35,Tabella_prezzi!$A$1:$J$186,3,FALSE)","v":"OpzSSD-RI1,6TB"},{"$f":"VLOOKUP(L35,Tabella_prezzi!$A$1:$J$186,9,FALSE)","v":"L8N11-OpzSSD-RI1,6TB"},{"$f":"VLOOKUP(L35,Tabella_prezzi!$A$1:$J$186,4,FALSE)*4","v":1866.48},null,"L8N11",{"$f":"VLOOKUP(L35,Tabella_prezzi!$A$1:$J$186,6,FALSE)","v":"TS4L8-RI1600GB"}]
[]
[{"$f":"D37","v":"3.84TB SSD SAS ISE RI 12Gbps 512e 2.5in PM6 Hot-Plug 1 DWPD"},"Hard Drives",null,{"$f":"VLOOKUP(L37,Tabella_prezzi!$A$1:$J$186,8,FALSE)","v":"3.84TB SSD SAS ISE RI 12Gbps 512e 2.5in PM6 Hot-Plug 1 DWPD"},null,null,1,{"$f":"VLOOKUP(L37,Tabella_prezzi!$A$1:$J$186,3,FALSE)","v":"OpzSSD-RI3,8TB"},{"$f":"VLOOKUP(L37,Tabella_prezzi!$A$1:$J$186,9,FALSE)","v":"L8N12-OpzSSD-RI3,8TB"},{"$f":"VLOOKUP(L37,Tabella_prezzi!$A$1:$J$186,4,FALSE)*4","v":3777.4},null,"L8N12",{"$f":"VLOOKUP(L37,Tabella_prezzi!$A$1:$J$186,6,FALSE)","v":"TS4L8-RI3,8TB"}]
[]
[{"$f":"D39","v":"1.6TB SSD SAS ISE MU 12Gbps 512e 2.5in Hot-Plug PM6 3 DWPD"},"Hard Drives",null,{"$f":"VLOOKUP(L39,Tabella_prezzi!$A$1:$J$186,8,FALSE)","v":"1.6TB SSD SAS ISE MU 12Gbps 512e 2.5in Hot-Plug PM6 3 DWPD"},null,null,1,{"$f":"VLOOKUP(L39,Tabella_prezzi!$A$1:$J$186,3,FALSE)","v":"OpzSSD-MU1.6TB"},{"$f":"VLOOKUP(L39,Tabella_prezzi!$A$1:$J$186,9,FALSE)","v":"L8N13-OpzSSD-MU1.6TB"},{"$f":"VLOOKUP(L39,Tabella_prezzi!$A$1:$J$186,4,FALSE)*4","v":2545.1999999999998},null,"L8N13",{"$f":"VLOOKUP(L39,Tabella_prezzi!$A$1:$J$186,6,FALSE)","v":"TS4L8-MU1.6TB"}]
[]
[{"$f":"D41","v":"960GB SSD SAS ISE RI 12Gbps 512e 2.5in Hot-Plug 1 DWPD"},"Hard Drives",null,{"$f":"VLOOKUP(L41,Tabella_prezzi!$A$1:$J$186,8,FALSE)","v":"960GB SSD SAS ISE RI 12Gbps 512e 2.5in Hot-Plug 1 DWPD"},null,null,1,{"$f":"VLOOKUP(L41,Tabella_prezzi!$A$1:$J$186,3,FALSE)","v":"OpzSSD-RI800GB"},{"$f":"VLOOKUP(L41,Tabella_prezzi!$A$1:$J$186,9,FALSE)","v":"L8N14-OpzSSD-RI800GB"},{"$f":"VLOOKUP(L41,Tabella_prezzi!$A$1:$J$186,4,FALSE)*4","v":1272.5999999999999},null,"L8N14",{"$f":"VLOOKUP(L41,Tabella_prezzi!$A$1:$J$186,6,FALSE)","v":"TS4L8-RI800GB"}]
[]
[{"$f":"D43","v":"SSD 960GB SAS RI 12Gbps 2.5in Hot-plug, 1 DWPD"},"Hard Drives",null,{"$f":"VLOOKUP(L43,Tabella_prezzi!$A$1:$J$186,8,FALSE)","v":"SSD 960GB SAS RI 12Gbps 2.5in Hot-plug, 1 DWPD"},null,null,1,{"$f":"VLOOKUP(L43,Tabella_prezzi!$A$1:$J$186,3,FALSE)","v":"OpzSSD-MU800GB"},{"$f":"VLOOKUP(L43,Tabella_prezzi!$A$1:$J$186,9,FALSE)","v":"L8N15-OpzSSD-RI400GB"},{"$f":"VLOOKUP(L43,Tabella_prezzi!$A$1:$J$186,4,FALSE)*4","v":1484.72},null,"L8N15",{"$f":"VLOOKUP(L43,Tabella_prezzi!$A$1:$J$186,6,FALSE)","v":"TS4L8-MU800GB"}]
[]
[{"$f":"D45","v":"3.84TB SSD SATA Read Intensive 6Gbps 512e 2.5in Hot-Plug"},"Hard Drives",null,{"$f":"VLOOKUP(L45,Tabella_prezzi!$A$1:$J$186,8,FALSE)","v":"3.84TB SSD SATA Read Intensive 6Gbps 512e 2.5in Hot-Plug"},null,null,1,{"$f":"VLOOKUP(L45,Tabella_prezzi!$A$1:$J$186,3,FALSE)","v":"OpzSSD-3,84TB"},{"$f":"VLOOKUP(L45,Tabella_prezzi!$A$1:$J$186,9,FALSE)","v":"L8N24-OpzSSD3.84RI"},{"$f":"VLOOKUP(L45,Tabella_prezzi!$A$1:$J$186,4,FALSE)*4","v":4854.6000000000004},null,"L8N24",{"$f":"VLOOKUP(L45,Tabella_prezzi!$A$1:$J$186,6,FALSE)","v":"TS4L8-SSD3.84RI"}]
[]
[{"$f":"D47","v":"1.92TB SSD SATA Read Intensive 6Gbps 512e 2.5in Hot-Plug"},"Hard Drives",null,{"$f":"VLOOKUP(L47,Tabella_prezzi!$A$1:$J$186,8,FALSE)","v":"1.92TB SSD SATA Read Intensive 6Gbps 512e 2.5in Hot-Plug"},null,null,1,{"$f":"VLOOKUP(L47,Tabella_prezzi!$A$1:$J$186,3,FALSE)","v":"OpzSSD-1,92TB"},{"$f":"VLOOKUP(L47,Tabella_prezzi!$A$1:$J$186,9,FALSE)","v":"L8N25-OpzSSD1.92RI"},{"$f":"VLOOKUP(L47,Tabella_prezzi!$A$1:$J$186,4,FALSE)*4","v":2440.8000000000002},null,"L8N25",{"$f":"VLOOKUP(L47,Tabella_prezzi!$A$1:$J$186,6,FALSE)","v":"TS4L8-SSD1.92RI"}]
[]
[]
["Aggiungere Secondo Processore"]
["TS4L8_PCI_C"]
[{"$f":"\"\"","v":""},null,null,null,null,null,0,null,{"$f":"\"\"","v":""},null,null,{"$f":"\"\"","v":""},{"$f":"\"\"","v":""}]
[{"$f":"D53","v":"Intel X710-T2L Dual Port 10GbE BASE-T Adapter, PCIe Low Profile + Optics"},null,null,{"$f":"VLOOKUP(L53,Tabella_prezzi!$A$1:$J$186,8,FALSE)","v":"Intel X710-T2L Dual Port 10GbE BASE-T Adapter, PCIe Low Profile + Optics"},null,null,4,{"$f":"VLOOKUP(L53,Tabella_prezzi!$A$1:$J$186,3,FALSE)","v":"Opz10Gigabit BaseT"},{"$f":"VLOOKUP(L53,Tabella_prezzi!$A$1:$J$186,9,FALSE)","v":"L8N05-Opz10Gigabit BaseT"},{"$f":"VLOOKUP(L53,Tabella_prezzi!$A$1:$J$186,4,FALSE)","v":144.43},null,"L8N05",{"$f":"VLOOKUP(L53,Tabella_prezzi!$A$1:$J$186,6,FALSE)","v":"TS4L8-LAN_BaseT"}]
[{"$f":"D54","v":"Intel Ethernet XXV710 Dual Port 10 SFP28 Adapter, PCIe Low Profile + optics"},null,null,{"$f":"VLOOKUP(L54,Tabella_prezzi!$A$1:$J$186,8,FALSE)","v":"Intel Ethernet XXV710 Dual Port 10 SFP28 Adapter, PCIe Low Profile + optics"},null,null,4,{"$f":"VLOOKUP(L54,Tabella_prezzi!$A$1:$J$186,3,FALSE)","v":"OpzGigabit10Gbps"},{"$f":"VLOOKUP(L54,Tabella_prezzi!$A$1:$J$186,9,FALSE)","v":"L8N06-OpzGigabit10GbpsLP"},{"$f":"VLOOKUP(L54,Tabella_prezzi!$A$1:$J$186,4,FALSE)","v":149.99},null,"L8N06",{"$f":"VLOOKUP(L54,Tabella_prezzi!$A$1:$J$186,6,FALSE)","v":"TS4L8-LAN10-L"}]
[{"$f":"D55","v":"Intel Ethernet XXV710 Dual Port 25GbE SFP28 Adapter, PCIe Low Profile + Optics"},null,null,{"$f":"VLOOKUP(L55,Tabella_prezzi!$A$1:$J$186,8,FALSE)","v":"Intel Ethernet XXV710 Dual Port 25GbE SFP28 Adapter, PCIe Low Profile + Optics"},null,null,4,{"$f":"VLOOKUP(L55,Tabella_prezzi!$A$1:$J$186,3,FALSE)","v":"OpzGigabit25Gbps"},{"$f":"VLOOKUP(L55,Tabella_prezzi!$A$1:$J$186,9,FALSE)","v":"L8N07-OpzGigabit25GbpsLP"},{"$f":"VLOOKUP(L55,Tabella_prezzi!$A$1:$J$186,4,FALSE)","v":233.31},null,"L8N07",{"$f":"VLOOKUP(L55,Tabella_prezzi!$A$1:$J$186,6,FALSE)","v":"TS4L8-LAN25-L"}]
[{"$f":"D56","v":"QLogic FastLinQ 41262 Dual Port 25Gb SFP28 Adapter, Low Profile + Optics"},null,null,{"$f":"VLOOKUP(L56,Tabella_prezzi!$A$1:$J$186,8,FALSE)","v":"QLogic FastLinQ 41262 Dual Port 25Gb SFP28 Adapter, Low Profile + Optics"},null,null,4,{"$f":"VLOOKUP(L56,Tabella_prezzi!$A$1:$J$186,3,FALSE)","v":"OpzGigabit10Gbps CNA"},{"$f":"VLOOKUP(L56,Tabella_prezzi!$A$1:$J$186,9,FALSE)","v":"L8N08-OpzCNA10GbpsLP"},{"$f":"VLOOKUP(L56,Tabella_prezzi!$A$1:$J$186,4,FALSE)","v":149.99},null,"L8N08",{"$f":"VLOOKUP(L56,Tabella_prezzi!$A$1:$J$186,6,FALSE)","v":"TS4L8-CNA10-L"}]
[]
["Opzioni 20%",null,null,null,null,null,null,null,null,null,null,null,"Selezionare Scheda PCI"]
[{"$f":"D59","v":"Mellanox ConnectX-6 DX Dual Port 100GbE QSFP56 Network Adapter, Low Profile"},null,null,{"$f":"VLOOKUP(L59,Tabella_prezzi!$A$1:$J$186,8,FALSE)","v":"Mellanox ConnectX-6 DX Dual Port 100GbE QSFP56 Network Adapter, Low Profile"},null,null,4,{"$f":"VLOOKUP(L59,Tabella_prezzi!$A$1:$J$186,3,FALSE)","v":"OpzCX6-100"},{"$f":"VLOOKUP(L59,Tabella_prezzi!$A$1:$J$186,9,FALSE)","v":"L8N27-Opz100GBs-M"},null,{"$f":"VLOOKUP(L59,Tabella_prezzi!$A$1:$J$186,4,FALSE)","v":739.80000000000007},"L8N27",{"$f":"VLOOKUP(L59,Tabella_prezzi!$A$1:$J$186,6,FALSE)","v":"TS4L8-100GBs-M"}]
[{"$f":"D60","v":"Mellanox ConnectX-6 Single Port HDR VPI Infiniband Adapter, PCIe Low Profile"},null,null,{"$f":"VLOOKUP(L60,Tabella_prezzi!$A$1:$J$186,8,FALSE)","v":"Mellanox ConnectX-6 Single Port HDR VPI Infiniband Adapter, PCIe Low Profile"},null,null,4,{"$f":"VLOOKUP(L60,Tabella_prezzi!$A$1:$J$186,3,FALSE)","v":"OpzCX6"},{"$f":"VLOOKUP(L60,Tabella_prezzi!$A$1:$J$186,9,FALSE)","v":"L8N26-Opz100GBs-INF"},null,{"$f":"VLOOKUP(L60,Tabella_prezzi!$A$1:$J$186,4,FALSE)","v":1305.45},"L8N26",{"$f":"VLOOKUP(L60,Tabella_prezzi!$A$1:$J$186,6,FALSE)","v":"TS4L8-100GBs-INF"}]
["TS4L8_SFP"]
[{"$f":"D62","v":"Dell EMC PowerEdge QSFP28 SR4 100GbE 85C optic"},null,null,{"$f":"VLOOKUP(L62,Tabella_prezzi!$A$1:$J$186,8,FALSE)","v":"Dell EMC PowerEdge QSFP28 SR4 100GbE 85C optic"},null,null,4,{"$f":"VLOOKUP(L62,Tabella_prezzi!$A$1:$J$186,3,FALSE)","v":"OpzOT100GB"},{"$f":"VLOOKUP(L62,Tabella_prezzi!$A$1:$J$186,9,FALSE)","v":"L8N28-OpzOT100GB"},null,{"$f":"VLOOKUP(L62,Tabella_prezzi!$A$1:$J$186,4,FALSE)","v":484.65},"L8N28",{"$f":"VLOOKUP(L62,Tabella_prezzi!$A$1:$J$186,6,FALSE)","v":"TS4L8-OT100GB"}]
["TS4L8_WARRANTY"]
["Manutenzione in garanzia (36 mesi)","Dell Services: Extended Service",null,"RESTRICTED:ProSupport One Data Center and Next Business Day Onsite Service Volume Low, 39 Month(s)",null,null,{"$f":"\"\"","v":""},null,{"$f":"\"\"","v":""},null,null,{"$f":"\"\"","v":""},{"$f":"\"\"","v":""}]
[{"$f":"D65","v":"Estensione della manutenzione in garanzia per ulteriori 24 mesi"},"Dell Services: Extended Service",null,{"$f":"VLOOKUP(L65,Tabella_prezzi!$A$1:$J$186,8,FALSE)","v":"Estensione della manutenzione in garanzia per ulteriori 24 mesi"},null,null,1,{"$f":"VLOOKUP(L65,Tabella_prezzi!$A$1:$J$186,3,FALSE)","v":"OpzEstensione24"},{"$f":"VLOOKUP(L65,Tabella_prezzi!$A$1:$J$186,9,FALSE)","v":"L8N21-OpzEstensione24"},{"$f":"VLOOKUP(L65,Tabella_prezzi!$A$1:$J$186,4,FALSE)","v":719.32},null,"L8N21",{"$f":"VLOOKUP(L65,Tabella_prezzi!$A$1:$J$186,6,FALSE)","v":"TS4L8-Estensione24"}]
[]
["TS4L8_KYHDD"]
[{"$f":"\"\"","v":""},"Keep Your Hard Drive",null,null,null,null,0,null,{"$f":"\"\"","v":""},null,null,{"$f":"\"\"","v":""},{"$f":"\"\"","v":""}]
["Hard Disk Retention 36 mesi","Keep Your Hard Drive",null,{"$f":"VLOOKUP(L69,Tabella_prezzi!$A$1:$J$186,8,FALSE)","v":"Hard Disk Retention 36 mesi"},null,null,1,{"$f":"VLOOKUP(L69,Tabella_prezzi!$A$1:$J$186,3,FALSE)","v":"OpzHDDRetention"},{"$f":"VLOOKUP(L69,Tabella_prezzi!$A$1:$J$186,9,FALSE)","v":"L8N20-OpzHDDRetention"},{"$f":"VLOOKUP(L69,Tabella_prezzi!$A$1:$J$186,4,FALSE)","v":59.6},null,"L8N20",{"$f":"VLOOKUP(L69,Tabella_prezzi!$A$1:$J$186,6,FALSE)","v":"TS4L8-HDRTN36"}]
["Hard Disk Retention 60 mesi","Keep Your Hard Drive",null,{"$f":"VLOOKUP(L70,Tabella_prezzi!$A$1:$J$186,8,FALSE)","v":"Hard Disk Retention 60 mesi"},null,null,1,{"$f":"VLOOKUP(L70,Tabella_prezzi!$A$1:$J$186,3,FALSE)","v":"OpzHDDRetention"},{"$f":"VLOOKUP(L70,Tabella_prezzi!$A$1:$J$186,9,FALSE)","v":"L8N20e-OpzHDDRetention"},{"$f":"VLOOKUP(L70,Tabella_prezzi!$A$1:$J$186,4,FALSE)","v":98.93},null,"L8N20e",{"$f":"VLOOKUP(L70,Tabella_prezzi!$A$1:$J$186,6,FALSE)","v":"TS4L8-HDRTN60"}]
[]
[]
["TS4L8_Controller"]
["No Controller",{"$f":"\"\"","v":""},{"$f":"\"\"","v":""},{"$f":"\"\"","v":""},{"$f":"\"\"","v":""},{"$f":"\"\"","v":""},0,{"$f":"\"\"","v":""},{"$f":"\"\"","v":""},{"$f":"\"\"","v":""},{"$f":"\"\"","v":""},{"$f":"\"\"","v":""},{"$f":"\"\"","v":""}]
["PERC H350 Controller Card",null,null,null,null,null,4,null,{"$f":"\"\"","v":""},null,null,{"$f":"\"\"","v":""},{"$f":"\"\"","v":""}]
[]
[]
[{"$f":"D78","v":"Dispositivo UPS di tipo On-line doppia conversione, strutturato per il montaggio a rack da 19”"},null,null,{"$f":"VLOOKUP(L78,Tabella_prezzi!$A$1:$J$186,8,FALSE)","v":"Dispositivo UPS di tipo On-line doppia conversione, strutturato per il montaggio a rack da 19”"},null,null,1,{"$f":"VLOOKUP(L78,Tabella_prezzi!$A$1:$J$186,3,FALSE)","v":"OpzUps (3000VA)"},{"$f":"VLOOKUP(L78,Tabella_prezzi!$A$1:$J$186,9,FALSE)","v":"L8N16-OpzUps"},{"$f":"VLOOKUP(L78,Tabella_prezzi!$A$1:$J$186,4,FALSE)","v":386.02},null,"L8N16",{"$f":"VLOOKUP(L78,Tabella_prezzi!$A$1:$J$186,6,FALSE)","v":"TS4L8-UPS"}]
[{"$f":"D79","v":"Console KVM GUI da rack"},null,null,{"$f":"VLOOKUP(L79,Tabella_prezzi!$A$1:$J$186,8,FALSE)","v":"Console KVM GUI da rack"},null,null,1,{"$f":"VLOOKUP(L79,Tabella_prezzi!$A$1:$J$186,3,FALSE)","v":"OpzGUI"},{"$f":"VLOOKUP(L79,Tabella_prezzi!$A$1:$J$186,9,FALSE)","v":"L8N17-OpzGUI"},{"$f":"VLOOKUP(L79,Tabella_prezzi!$A$1:$J$186,4,FALSE)","v":491.62},null,"L8N17",{"$f":"VLOOKUP(L79,Tabella_prezzi!$A$1:$J$186,6,FALSE)","v":"TS4L8-GUI"}]
[{"$f":"D80","v":"KVM Switch IP per GUI 16P"},null,null,{"$f":"VLOOKUP(L80,Tabella_prezzi!$A$1:$J$186,8,FALSE)","v":"KVM Switch IP per GUI 16P"},null,null,1,{"$f":"VLOOKUP(L80,Tabella_prezzi!$A$1:$J$186,3,FALSE)","v":"OpzKVM"},{"$f":"VLOOKUP(L80,Tabella_prezzi!$A$1:$J$186,9,FALSE)","v":"L8N18-OpzKVM"},{"$f":"VLOOKUP(L80,Tabella_prezzi!$A$1:$J$186,4,FALSE)","v":552.47},null,"L8N18",{"$f":"VLOOKUP(L80,Tabella_prezzi!$A$1:$J$186,6,FALSE)","v":"TS4L8-SWKVM"}]
["1-pack of Windows Server 2019/2016 Device CALs (STD or DC)",null,null,{"$f":"VLOOKUP(L81,Tabella_prezzi!$A$1:$J$186,8,FALSE)","v":"Hard Disk Retention 36 mesi"},null,null,1,{"$f":"VLOOKUP(L81,Tabella_prezzi!$A$1:$J$186,3,FALSE)","v":"OpzHDDRetention"},{"$f":"VLOOKUP(L81,Tabella_prezzi!$A$1:$J$186,9,FALSE)","v":"L8N20-OpzHDDRetention"},{"$f":"VLOOKUP(L81,Tabella_prezzi!$A$1:$J$186,4,FALSE)","v":59.6},null,"L8N20",{"$f":"VLOOKUP(L81,Tabella_prezzi!$A$1:$J$186,6,FALSE)","v":"TS4L8-HDRTN36"}]
["1-pack of Windows Server 2019/2016 User CALs (STD or DC)",null,null,{"$f":"VLOOKUP(L82,Tabella_prezzi!$A$1:$J$186,8,FALSE)","v":"Estensione della manutenzione in garanzia per ulteriori 24 mesi"},null,null,1,{"$f":"VLOOKUP(L82,Tabella_prezzi!$A$1:$J$186,3,FALSE)","v":"OpzEstensione24"},{"$f":"VLOOKUP(L82,Tabella_prezzi!$A$1:$J$186,9,FALSE)","v":"L8N21-OpzEstensione24"},{"$f":"VLOOKUP(L82,Tabella_prezzi!$A$1:$J$186,4,FALSE)","v":719.32},null,"L8N21",{"$f":"VLOOKUP(L82,Tabella_prezzi!$A$1:$J$186,6,FALSE)","v":"TS4L8-Estensione24"}]
[{"$f":"D83","v":"Armadio Rack 42U"},null,null,{"$f":"VLOOKUP(L83,Tabella_prezzi!$A$1:$J$186,8,FALSE)","v":"Armadio Rack 42U"},null,null,1,{"$f":"VLOOKUP(L83,Tabella_prezzi!$A$1:$J$186,3,FALSE)","v":"OpzRack"},{"$f":"VLOOKUP(L83,Tabella_prezzi!$A$1:$J$186,9,FALSE)","v":"L8N22-OpzRack"},{"$f":"VLOOKUP(L83,Tabella_prezzi!$A$1:$J$186,4,FALSE)","v":579.63},null,"L8N22",{"$f":"VLOOKUP(L83,Tabella_prezzi!$A$1:$J$186,6,FALSE)","v":"TS4L8-RACK"}]
[]
[]
["Mini DisplayPort to VGA"]
[null,0,0]
[null,1,1]
[null,4,4]
[]
[]
[0]
[2]
[]
[0]
[1]
[2]
[3]
[4]
[5]
[6]

{"sheet":"Tabella_prezzi","index":7,"n_rows":33,"n_cols":11,"rows_kept":33,"cut":false,"hidden":true,"merged":[[10,0,11,0],[10,1,11,1],[10,2,11,2],[10,3,11,3],[6,5,7,5],[10,5,11,5],[8,0,9,0],[8,1,9,1],[8,2,9,2],[8,3,9,3],[8,4,9,4],[8,5,9,5],[6,0,7,0],[6,1,7,1],[6,2,7,2],[6,3,7,3],[19,0,20,0],[19,1,20,1],[19,2,20,2],[19,3,20,3],[19,4,20,4],[10,4,11,4],[6,4,7,4],[19,6,20,6],[10,7,11,7],[10,8,11,8],[19,5,20,5],[19,7,20,7],[19,8,20,8],[6,7,7,7],[6,8,7,8],[8,7,9,7],[8,8,9,8]]}
["N°",null,"Attributo","Valore inserito","N°","Codice Convenzione","Qty:","Description:","Sku Number:","Sku Number:"]
["L8N01",1,"Server rackable high-density",10030.790000000001,"L8N01","TS4L8-SRV",1,"DELL PowerEdge C6400 con 4 x DELL PowerEdge C6525","L8N01-ServerC6525",null,"DELL"]
["L8N02",2,"Kit n. 1 Processore aggiuntivo",572.16999999999996,"L8N02","TS4L8-CPU",1,"AMD7413 2.65GHz,24C/48T,128M,180W,3200","L8N02-OpzCPU","338-BWBE","DELL"]
["L8N03",3,"OpzRAM32GB",263.64,"L8N03","TS4L8-RAM32",1,"32GB - 2Rx4 DDR4 RDIMM 3200MHz","L8N03-OpzRAM32GB","AA799087","DELL"]
["L8N04",4,"OpzRAM64GB",311.08,"L8N04","TS4L8-RAM64",1,"64GB - 2RX4 DDR4 RDIMM 3200MHz","L8N04-OpzRAM64GB","AA799110","DELL"]
["L8N05",5,"Opz10Gigabit BaseT",144.43,"L8N05","TS4L8-LAN_BaseT",1,"Intel X710-T2L Dual Port 10GbE BASE-T Adapter, PCIe Low Profile + Optics","L8N05-Opz10Gigabit BaseT","540-BBHB","DELL"]
["L8N06",6,"OpzGigabit10Gbps",149.99,"L8N06","TS4L8-LAN10-L",1,"Intel Ethernet XXV710 Dual Port 10 SFP28 Adapter, PCIe Low Profile + optics","L8N06-OpzGigabit10GbpsLP","540-BBML","DELL"]
[null,null,null,null,null,null,2,null,null,"407-BCBN","DELL"]
["L8N07",7,"OpzGigabit25Gbps",233.31,"L8N07","TS4L8-LAN25-L",1,"Intel Ethernet XXV710 Dual Port 25GbE SFP28 Adapter, PCIe Low Profile + Optics","L8N07-OpzGigabit25GbpsLP","540-BCNJ","DELL"]
[null,null,null,null,null,null,2,null,null,"407-BCHI","DELL"]
["L8N08",8,"OpzGigabit10Gbps CNA",149.99,"L8N08","TS4L8-CNA10-L",1,"QLogic FastLinQ 41262 Dual Port 25Gb SFP28 Adapter, Low Profile + Optics","L8N08-OpzCNA10GbpsLP","540-BCNS","DELL"]
[null,null,null,null,null,null,2,null,null,"407-BCBN","DELL"]
["L8N09",9,"OpzHDD1TB",83.33,"L8N09","TS4L8-HDD1TB",1,"1.2TB 10K RPM SAS ISE 12Gbps 512n 2.5in Hot-plug Hard Drive","L8N09-OpzHDD1TB","400-ATJL","DELL"]
["L8N10",10,"OpzHDD2TB",166.65,"L8N10","TS4L8-HDD2TB",1,"2.4TB 10k 512e SAS ISE 12Gbps 2.5in Hot Plug Hard Drive","L8N10-OpzHDD2TB","400-ATII","DELL"]
["L8N11",11,"OpzSSD-RI1,6TB",466.62,"L8N11","TS4L8-RI1600GB",1,"1.92TB SSD SAS ISE RI 12Gbps 512e 2.5in Hot-Plug 1 DWP","L8N11-OpzSSD-RI1,6TB","400-BFZC","DELL"]
["L8N12",12,"OpzSSD-RI3,8TB",944.35,"L8N12","TS4L8-RI3,8TB",1,"3.84TB SSD SAS ISE RI 12Gbps 512e 2.5in PM6 Hot-Plug 1 DWPD","L8N12-OpzSSD-RI3,8TB","400-AZIH","DELL"]
["L8N13",13,"OpzSSD-MU1.6TB",636.29999999999995,"L8N13","TS4L8-MU1.6TB",1,"1.6TB SSD SAS ISE MU 12Gbps 512e 2.5in Hot-Plug PM6 3 DWPD","L8N13-OpzSSD-MU1.6TB","400-BBPN","DELL"]
["L8N14",14,"OpzSSD-RI800GB",318.14999999999998,"L8N14","TS4L8-RI800GB",1,"960GB SSD SAS ISE RI 12Gbps 512e 2.5in Hot-Plug 1 DWPD","L8N14-OpzSSD-RI800GB","400-BCNN","DELL"]
["L8N15",15,"OpzSSD-MU800GB",371.18,"L8N15","TS4L8-MU800GB",1,"SSD 960GB SAS RI 12Gbps 2.5in Hot-plug, 1 DWPD","L8N15-OpzSSD-RI400GB","400-BKYR","DELL"]
["L8N16",16,"OpzUps (3000VA)",386.02,"L8N16","TS4L8-UPS",1,"Dispositivo UPS di tipo On-line doppia conversione, strutturato per il montaggio a rack da 19”","L8N16-OpzUps","RPMM9/3K","DELL"]
[null,null,null,null,null,null,null,null,null,null,"DELL"]
["L8N17",17,"OpzGUI",491.62,"L8N17","TS4L8-GUI",1,"Console KVM GUI da rack","L8N17-OpzGUI","F9857N","DELL"]
["L8N18",18,"OpzKVM",552.47,"L8N18","TS4L8-SWKVM",1,"KVM Switch IP per GUI 16P","L8N18-OpzKVM","T9816NIP","DELL"]
["L8N19",19,"OpzOpenSource",31.82,"L8N19","TS4L8-OpenSource",1,"Ubuntu 22.04 LTS 64 Bit","L8N19-OpzOpenSource","634-BSFX","DELL"]
["L8N20",24,"OpzHDDRetention",59.6,"L8N24","TS4L8-HDRTN36",1,"Hard Disk Retention 36 mesi","L8N20-OpzHDDRetention","785-10921","DELL"]
["L8N20e",24,"OpzHDDRetention",98.93,"L8N24","TS4L8-HDRTN60",1,"Hard Disk Retention 60 mesi","L8N20e-OpzHDDRetention","785-10921","DELL"]
["L8N21",25,"OpzEstensione24",719.32,"L8N25","TS4L8-Estensione24",1,"Estensione della manutenzione in garanzia per ulteriori 24 mesi","L8N21-OpzEstensione24","742-10105","DELL"]
["L8N22",26,"OpzRack",579.63,"L8N22","TS4L8-RACK",1,"Armadio Rack 42U","L8N22-OpzRack","P6142NCONSIP","DELL"]
["L8N24",27,"OpzSSD-3,84TB",1213.6500000000001,"L8N24","TS4L8-SSD3.84RI",1,"3.84TB SSD SATA Read Intensive 6Gbps 512e 2.5in Hot-Plug","L8N24-OpzSSD3.84RI",null,"DELL"]
["L8N25",26,"OpzSSD-1,92TB",610.20000000000005,"L8N25","TS4L8-SSD1.92RI",1,"1.92TB SSD SATA Read Intensive 6Gbps 512e 2.5in Hot-Plug","L8N25-OpzSSD1.92RI","P6142NCONSIP","DELL"]
["L8N26",27,"OpzCX6",1305.45,"L8N26","TS4L8-100GBs-INF",1,"Mellanox ConnectX-6 Single Port HDR VPI Infiniband Adapter, PCIe Low Profile","L8N26-Opz100GBs-INF",null,"DELL"]
["L8N27",26,"OpzCX6-100",739.80000000000007,"L8N27","TS4L8-100GBs-M",1,"Mellanox ConnectX-6 DX Dual Port 100GbE QSFP56 Network Adapter, Low Profile","L8N27-Opz100GBs-M",null,"DELL"]
["L8N28",26,"OpzOT100GB",484.65,"L8N28","TS4L8-OT100GB",1,"Dell EMC PowerEdge QSFP28 SR4 100GbE 85C optic","L8N28-OpzOT100GB",null,"DELL"]